Workbook

Sheet Programs (hidden)
A1: Atlantic Cape Community College
A2: Bergen Community College
A3: Brookdale Community College
A4: Caldwell University
A5: Camden County College
A6: Centenary University
A7: County College of Morris
A8: Drew University
A9: Essex County College
A10: Fairleigh Dickinson University - Florham
A11: Fairleigh Dickinson University - Metropolitan
A12: Felician University
A13: Georgian Court University
A14: Hudson County Community College
A15: Kean University
A16: Mercer County Community College
A17: Middlesex County College
A18: Monmouth University
A19: Montclair State University
A20: Montclair State University - Bloomfield
A21: Montclair State University - Health Careers Program
A22: New Jersey City University
A23: New Jersey Institute of Technology
A24: Ocean County College
A25: Passaic County Community College
A26: Ramapo College of New Jersey
A27: Raritan Valley Community College
A28: Rider University
A29: Rowan College at Burlington County
A30: Rowan College of South Jersey - Cumberland
A31: Rowan College of South Jersey - Gloucester
A32: Rowan School of Osteopathic Medicine (SOM) - Pre-Matric
A33: Rowan School of Osteopathic Medicine (SOM) - Summer Prep
A34: Rowan University - Camden
A35: Rowan University - Cooper Medical School - PULSE Program
A36: Rowan University - Glassboro
A37: Rutgers University - Camden
A38: Rutgers University - College of Nursing
A39: Rutgers University - New Jersey Medical School
A40: Rutgers University - Newark
A41: Rutgers University - ODASIS
A42: Rutgers University - Office of EOF Administration
A43: Rutgers University - Robert Wood Johnson Medical School
A44: Rutgers University - School of Arts and Sciences (New Brunswick)
A45: Rutgers University - School of Engineering
A46: Rutgers University - School of Environmental and Biological Sciences
A47: Rutgers University - School of Health Professions
A48: Rutgers University - School of Pharmacy
A49: Rutgers University - Summer Grads
A50: Saint Elizabeth University
A51: Saint Peter's University
A52: Salem Community College
A53: Seton Hall - Law
A54: Seton Hall University - Main
A55: Seton Hall University - Pre-Legal
A56: Seton Hall University - Pre-Med/Pre-Dent Plus
A57: Stevens Institute of Technology
A58: Stockton University - Atlantic City
A59: Stockton University - Galloway
A60: Sussex County Community College
A61: The College of New Jersey
A62: Union County College
A63: Warren County Community College
A64: William Paterson University

Sheet COVER
C1: EDUCATIONAL OPPORTUNITY FUND
C2: OFFICE OF THE SECRETARY OF HIGHER EDUCATION
C3: PO BOX 542
C4: TRENTON, NEW JERSEY 08625
C7: Academic Year 2023-2024
C8: ANNUAL REPORT
L9: `
B16: Institution/Program: | E16: Please select your institution/program from the drop-down menu.
B19: EOF Director: | E19: Please provide the EOF Director's name.
B22: Signature: | E22: Note: The cover page signature will be completed via Docusign.
B24: INSTRUCTIONS FOR SUBMITTING REPORT Submit by e-mail to EOF@oshe.nj.gov with a copy to EOF Executive Director, Dr. Hasani Carter at Hasani.Carter@oshe.nj.gov. The report should be submitted as an EXCEL DOCUMENT and the narrative should be submitted as a WORD DOCUMENT The cover page, with original signature, will be completed via DocuSign. SUBMISSION DATE: October 18, 2024

Sheet NARRATIVE
B1: ANNUAL REPORT NARRATIVE
B3: When writing your program's annual report narrative, clearly divide and label each section in a manner that will allow for the reader to make a clear and obvious distinction in your responses to each of the items listed below.
B7: 1) Please list the major accomplishments of your program as well as student accomplishments during the 2023-2024 academic year. The narrative must include an assessment of how you met the EOF program goals and objectives contained in your FY 2024 (FY24) EOF Contract Attachment B1 (please refer back to your B1 contract attachment for FY24). 2) Describe how you have used the results from FY24 to change any program services offered for FY25. 3) Describe/outline any components of your program's activities or characteristics of the student population that you serve that cannot be captured in Tables 1-7 of the EOF Annual Report or the program goals and objectives listed in the contract budget attachments B1 for the 2023-2024 academic year. In addition to providing outcomes data not covered in the formal report pages, you can also include information about program changes and collaborations that have helped to improve services to students and have increased efficiencies and/or strengthened program components. 4) As a result of your FY 2024 EOF academic year Article IV budget allocation and institutional financial support, describe program enhancements and/or challenges you confronted and how they were addressed as a result of the budget. PLEASE NOTE: THIS NARRATIVE MUST BE PROVIDED IN A SEPARATE WORD DOCUMENT.

Sheet SUMMARY
A1: Academic Year 2023-2024
A3: ANNUAL REPORT SUMMARY
A5: The EOF Annual Report is used to collect data on the students who received a EOF grant or who were non-funded during 2023-2024 Academic Year (AY). We understand that depending on how your program is structured and supported by your institution, your program may have provided services to non-EOF students (i.e. EOF funds were not used to support these students and the institution covered all expenses associated with supporting your non-EOF students). However, for the purposes of this report, programs are ONLY permitted to report on EOF FUNDED (i.e. Paid students) and EOF NON-FUNDED students who attended your program during the 2023-2024 academic year and who appear on the EOF NJFAMS Final Enrollment Report. Totals provided on this spreadsheet should remain consistent and will be referenced throughout the report.
A13: 1) Number of students (unduplicated headcount*) on the AY 23-24 Final Enrollment Report:
B15: To determine the unduplicated headcount:
B16: # FUNDED only students (do not include mixed funded):
B17: # NON-FUNDED only students:
B18: # students with MIXED FUNDING status:
B19: (mixed = 1 semester funded, 1 semester non-funded)
B20: Unduplicated headcount = total funded/non-funded/mixed | F20: =IF(SUM(F16:F19)=0,"",SUM(F16:F19)) ->  | G20: Total must equal unduplicated count in #1.
B22: # of FUNDED students + # of MIXED FUNDED students: | F22: =IF(SUM(F16+F18)=0,"",SUM(F16+F18)) -> 
A24: 2) Actual number of students in your AY 23-24 program:
B25: In some cases, a student may have been awarded or cancelled AFTER the Final Enrollment Report was printed. If this is the case, and your final enrollment differs from the unduplicated headcount provided above, please provide the student name, HESAA ID#, and a brief explanation. You may need to add rows to accommodate this information in this section.
A29: Student Name | B29: HESAA ID | C29: Explanation
A36: 3) Number of transfer students admitted into your program during the AY 23-24
B37: 3a. Total # of transfer students admitted into your program during the AY 23-24:
B39: 3b. Funding Classification of Transfer Students:
B40: (The sum of a & b should equal to the total # of transfer students.)
B41: # funded students
B42: # non-funded/services only students:
F43: Total = | G43: =SUM(G41+G42) -> 0 | H43: Total must equal count in 3a.
B45: 3c. Types of Transfer Students:
B46: (The sum of 1 - 3 below should equal to the total # of transfer students in 3a above.)
A47: 1 | B47: # of non-EOF internal transfers:
B48: (Non-EOF Internal transfers are students who are currently attending your institution and have no history of having enrolled at another institution nor receiving an EOF grant at another instutition or campus program. These students should have been coded with an Admission Type "First Time EOF" within NJFAMS, because this would be the first time the student received an EOF grant.)
A53: 2 | B53: # of EOF internal transfers*:
B54: (* = Only applicable for: Fairleigh Dickinson, Montclair State, Seton Hall, Stockton, Rowan, Rutgers, & Rowan College of South Jersey)
B55: (EOF Internal transfers are students who are currently attending your institution and have a history of receiving an EOF grant at your instutition. Typically, these students are transferring from one EOF campus program to another within the same institution (i.e. Rutgers Camden to Rutgers SEBS). These students should have been coded with an Admission Type "EOF Renewal" within NJFAMS because this student is a continuing EOF student.)
A60: 3 | B60: c) # of external transfers:
B61: (External transfers are students who previously attended another institution. This classification is the most common type of transfer student. This classification is independent of whether or not the student received an EOF grant previously. Students who have never received an EOF grant should have been coded as Admission Type "First Time EOF", because this would be the first time the student received an EOF grant. Students who received an EOF grant at their previous institution should have been coded as Admission Type "Transfer" within NJFAMS, since they are considered an EOF renewal student who last received an EOF grant at another institution.)
B68: Total # of non-EOF internal + EOF internal + external transfer students = | G68: =SUM(G47+G53+G60) -> 0 | H68: Total must equal count in 3a.
A72: 4) Number of students who separated from your program during AY 23-24:
B73: This is the number which will be reported in Table 1.
A75: 5) Number of students who graduated during AY 23-24:
B76: This is the number which will be reported in Table 2.

Sheet ARTAB 1 2
A1: TABLE 1 | B1: SEPARATION REPORT: ATTRITION
A3: The number of students reported as separated in this table should equal the number of students reported as separated within the summary section (Question #4) on page 1 =
H4: =IF(SUMMARY!G72="","",SUMMARY!G72) -> 
A5: NOTE: Students who graduated are not included in this table. They are reported in Table 2.
A7: 1. How many students enrolled in your program in spring 2023 but did not return in fall 2023?
A8: 2. How many students who enrolled and completed fall 2023 but did not return for spring 2024?
A9: 3. How many students dropped out before completing the fall 2023 semester?
A10: 4. How many students dropped out before completing the spring 2024 semester? *dropped out = withdrew; transfer; ANY reason for separation
F12: TOTAL # SEPARATED: | H12: =SUM(H7:H10) -> 0
A14: Please indicate the primary reason for separation (list 1 per student):
A16: a. | B16: Transferred to other institution
A17: b. | B17: Academic dismissal
A18: c. | B18: Could not make adjustment to college
A19: d. | B19: Needed to seek full-time employment
A20: e. | B20: Unable to meet cost of attendance
A21: f. | B21: Medical withdrawal
A22: g. | B22: Personal
A23: h. | B23: Other (please explain below)
A24: i. | B24: Unknown
F26: TOTAL REASONS: | H26: =SUM(H16:H24) -> 0
A27: Other Reasons:
A31: Of those who separated for reasons other than academic dismissal, how many:
B33: Withdrew in good academic standing
B34: Withdrew while on academic probation
A36: TABLE 2 | B36: GRADUATION REPORT
A38: The number of students reported as graduated in this table should equal the number of
A39: students reported as graduated within the summary section (Question #5) on page 1 = | H39: =IF(SUMMARY!G72="", "", SUMMARY!G75) -> 
A41: 1. How many students graduated from your program at the end of fall 2023?
A42: 2. How many students graduate from your program at the end of winter session 23-24?
A43: 3. How many students graduated from your program at the end of spring 2024?
A44: 4. How many students graduated from your program at the end of summer 2024?
F46: TOTAL # GRADUATED: | H46: =SUM(H41:H44) -> 0
A48: Indicate the career placement of the graduates.
A50: EMPLOYMENT IN THE FIELD OF: | E50: FURTHER EDUCATION:
A51: a. | B51: Education | E51: i. | F51: Graduate school
A52: b. | B52: Government | E52: j. | F52: Professional school
A53: c. | B53: Engineering | E53: k. | F53: Transferred to another college
A54: d. | B54: Business | E54: l. | F54: Other
A55: e. | B55: Science/Health
A56: f. | B56: Other
A57: g. | B57: Field Unknown
A58: h. | B58: Unemployed
F61: TOTAL PLACEMENTS: | H61: =SUM(C51:C58)+SUM(H51:H54) -> 0

Sheet ARTAB 3 4
A1: TABLE 3 | B1: COUNSELING, ADVISEMENT, AND STUDENT DEVELOPMENT SERVICES
A3: Indicate the number of counseling CONTACTS* provided to EOF funded and non-funded students** by EOF staff (e.g. directors, counselors, administrative assistants, etc.) as well as those individuals listed in your AY Article IV contract as providing a percentage of their time in support to the EOF program (e.g. financial aid officer with percentage of time to EOF). If more than one counseling topic was covered in the session, select the primary purpose for the session. Programs are expected to maintain documentation of all contacts.
A8: *Contacts = number of MEETINGS with students, not the number of students
A9: **Non-funded student = a renewal student who lost eligibility for a grant but continues to receive program support services or financially ineligible GEAR UP/COLLEGE BOUND/TRIO student who was admitted into the program.
A12: For purposes of this report, services are defined as follows:
A14: INDIVIDUAL CONTACTS = one-on-one meeting by phone, internet, in person, scheduled or drop-in
A15: GROUP CONTACTS = more than one person, in formal group meeting, by internet or in person, scheduled or drop-in
A16: Personal = family/relationship issues, self-esteem problems, peer pressure, etc.
A17: Academic = course assignments, schedules, time management, selecting major, grades, etc.
A18: Financial = college budget, personal finance issues, problems with financial aid package, etc.
A19: Career = resume, job search, references, internship opportunities, etc.
A20: Administrative = forms, signatures, paperwork, etc.
A21: Other =
C23: Individual Contacts | E23: Group Contacts | G23: Total Contacts
B24: PURPOSE | C24: (one-on-one) | E24: (more than one student)
B25: Personal | G25: =C25+E25 -> 0
B26: Academic | G26: =C26+E26 -> 0
B27: Financial | G27: 0
B28: Career | G28: 0
B29: Administrative | G29: 0
B30: Other (specify) | G30: 0
B31: TOTAL | C31: =SUM(C25:C30) -> 0 | E31: =SUM(E25:E30) -> 0 | G31: 0
A34: TABLE 3A | B34: COUNSELING SERVICES
A36: Distribute the number of EOF funded and non-funded STUDENTS (not contacts) who were provided
A37: EOF counseling/advisement during the academic year as follows:
B39: # students served within EOF program
B40: # students referred by EOF for counseling outside the program
A42: The total number of students reported should not exceed the total number listed in the Annual Report Summary, Question #2.
G43: =SUMMARY!G24 -> 0
A45: TABLE 4 | B45: TUTORING SERVICES
A47: Distribute the number of EOF students (funded and non-funded) by credits earned (at start of the academic year). Also, provide the total number of hours tutored. Please include tutoring provided by your program and/or by the institution.
B51: CREDITS | C51: # STUDENTS | E51: # HOURS
B52: 0-32
B53: 33-64
B54: 65-96
B55: 97 + above
B56: # Students = | C56: =SUM(C52:C55) -> 0 | D56: # Hours: | E56: =SUM(E52:E55) -> 0

Sheet ARTAB 5
A1: TABLE 5 | B1: BASIC SKILLS REMEDIATION
A3: To determine the characteristics of your students, please distribute the number of students who were identified at the start of the semester as needing basic skills remediation in math, writing, and reading.
A5: For the purpose of this report, basic skills courses are any courses in these subject areas that are below a 100 level course (001-099).
A8: Examples: | B8: MATH = | C8: elementary math, pre-algebra, algebra
B9: WRITING = | C9: communication skills (written and oral)
B10: READING = | C10: comprehension skills development
A12: 1. How many students were identified as needing remediation at the beginning of the
A13: FALL SEMESTER:
A15: One Area of Remediation
A16: MATH only | B16: WRITING only | C16: READING only | D16: READING/WRITING* | E16: TOTAL
E17: =SUM(A17:D17) -> 0
A18: * Reading/writing combined course
A20: Two Areas of Remediation
A21: MATH+WRITING | B21: MATH+READING | C21: WRITING+READING | D21: READING/WRITING*+MATH | E21: TOTAL
E22: =SUM(A22:D22) -> 0
A23: * Reading/writing combined course
A25: Three Areas of Remediation
A26: MATH+WRITING+READING
A30: 2. How many students were identified as needing remediation at the beginning of the
A31: SPRING SEMESTER:
A33: One Area of Remediation
A34: MATH only | B34: WRITING only | C34: READING only | D34: READING/WRITING* | E34: TOTAL
E35: =SUM(A35:D35) -> 0
A36: * Reading/writing combined course
A38: Two Areas of Remediation
A39: MATH+WRITING | B39: MATH+READING | C39: WRITING+READING | D39: READING/WRITING*+MATH | E39: TOTAL
E40: =SUM(A40:D40) -> 0
A41: * Reading/writing combined course
A43: Three Areas of Remediation
A44: MATH+WRITING+READING
A47: 3. How many of your students enrolled in ESL courses for the:
B49: Fall semester
B51: Spring semester

Sheet ARTAB 6
A1: TABLE 6 | B1: FINANCIAL AID DISTRIBUTION
A3: (Non-EOF ) = Regular Admit Students: distribute the financial aid provided from the sources listed below.
A4: EOF Students: distribute the financial aid provided for SUMMER and ACADEMIC YEAR from the sources listed.
A5: # = total number of students receiving aid from each source.
A6: Amount = total dollar amount of aid provided from each source. (This is not a per student number.)
A8: FY 2024 | D8: NON-EOF STUDENTS | F8: EOF PROGRAM STUDENTS
D11: AY 2023-2024 | F11: SUMMER 2023 | H11: AY 2023-2024
A12: A. INSTITUTIONAL FUNDS | D12: # | E12: Amount | F12: # | G12: Amount | H12: # * | I12: Amount
A13: Institutional Grant
A14: Waivers (Tuition & Fees)
A15: Loans
A16: Work
A17: Sub-total | D17: =SUM(D13:D16) -> 0 | E17: 0 | F17: 0 | G17: 0 | H17: 0 | I17: 0
A18: B. FEDERAL FUNDS | D18: # | E18: Amount | F18: # | G18: Amount | H18: # | I18: Amount
A19: PELL
A20: SEOG
A21: GEAR UP Scholarship
A22: Federal Work Study
A23: Federal Perkins Loan
A24: Federal Stafford Loan
A25: Federal Unsubsidized Loan
A26: Federal Plus Loan
A27: Federal CARES Act Funds
A28: Other
A29: Sub-total | D29: =SUM(D19:D28) -> 0 | E29: 0 | F29: 0 | G29: 0 | H29: 0 | I29: 0
A30: C. STATE FUNDS | D30: # | E30: Amount | F30: # | G30: Amount | H30: # | I30: Amount
A31: EOF **
A32: TAG
A33: NJ STARS (I and II)
A34: Community Coll. Opp. Grant (CCOG)
A35: Garden State Guarantee (GSG)
A36: Other State Grants (Bloustein,GSS,etc.)
A37: NJ Class Loan
A38: Other Loans
A39: Sub-total | D39: =SUM(D32:D38) -> 0 | E39: =SUM(E32:E38) -> 0 | F39: =SUM(F31:F38) -> 0 | G39: =SUM(G31:G38) -> 0 | H39: =SUM(H31:H38) -> 0 | I39: =SUM(I31:I38) -> 0
A40: D. RESTRICTED FUNDS | D40: # | E40: Amount | F40: # | G40: Amount | H40: # | I40: Amount
A41: Other grants/scholarships***
A42: GRAND TOTAL | D42: =SUM(D17,D29,D39,D41) -> 0 | E42: =E17+E29+E39+E41 -> 0 | F42: =SUM(F17,F29,F39,F41) -> 0 | G42: =G17+G29+G39+G41 -> 0 | H42: =SUM(H17,H29,H39,H41) -> 0 | I42: =I17+I29+I39+I41 -> 0
A44: * #s in the shaded column should not exceed total given in Annual Report Summary | H44: =SUMMARY!G24 -> 0
A46: ** The EOF dollar amount for AY 2023-2024 should not exceed the total value of awards provided on the 2023-2024 EOF Final Enrollment Report. If this is the case, then a refund may be due to EOF. Please contact your EOF program liaison immediately if there is a dicrepancy. The dollar amount and student numbers for summer 2023 should be the same information that was provided on the institution's FY2024 EOF 2023 Summer Program Final Expenditure Report. Do not include the information from your FY25 EOF 2024 Summer Program Final Expenditure Report.
A53: *** For example, scholarships from churches, foundations, etc.

Sheet ARTAB 7
A1: TABLE 7 | B1: STUDENT PROGRESS INDICATORS
A2: #1 Distribute your AY 23-24 students by award counter, gpa, and total cumulative credits earned at your institution.
A3: #2 Report the total number of degree and non-degree credits attempted vs. earned for all students listed.
A4: #3 Indicate the number of students NOT making satisfactory progress.
A5: Please note for each table that follows: A) The total number of credits earned (Section #2) should equal the distribution of credits in Section #1 above. This information should reflect each student's cumulative academic progress to-date (not just the credits earned during AY 2023-2024). B) Transfers listed in column M should be distributed throughout columns (A) thru (K) and INCLUDED in column L (total). For the purposes of Table 7, please only include external transfer students in column (M). These students should also be reflected in the Annual Report Summary section 3c-3. Non-EOF Internal transfer students and EOF Internal transfer students (as reported in the Annual Report Summary section 3c-1 & 3c-2) should be distributed throughout columns (A) thru (K) and included in column L (total). C) Degree credits attempted in Section # 2 should include withdrawals and incompletes. D) Students with a cumulative award counter of .25 (part-time freshman) should be rounded up and included in Table 7A (award counter = .50). Students with a cumulative award counter of .75 should be rounded up and included in Table 7B (award counter = 1.00). Students with a cumulative award counter of 1.25 should be rounded up and included in Table 7c (award counter = 1.5 and up). E) Non-funded ONLY students reported in Table 7D MUST be listed on the Final Enrollment Report. The number of students should match the information contained in item #1 within the Summary section. F) When completing tables 7A-7D, the total number of credits earned within each column (A-K) should not fall below the minimum and maximum allowable range. (Example: If there are only 4 students listed within column B (13-24 credits), then the minimum number of credits earned for this column (13 credits x 4 students) = 52 credits. The maximum number of credits would be (24 credits x 4 students) = 96 credits.) G) To assist programs with the ability to confirm the appropriateness of the information provided in Tables 7A-7D, programs can refer to the "Table A-D Reference Charts" and "Total Credits Earned Chart" tabs.
A22: TOTAL NUMBER OF STUDENTS LISTED IN TABLES 7A THROUGH 7D SHOULD EQUAL = | M22: =SUMMARY!G24 -> 0
A24: 7A: AWARD COUNTER = .50
A25: #1 Distribute students by total credits earned and cumulative gpa.
B27: TOTAL CUMULATIVE # OF CREDITS EARNED | N27: (M)
A28: CUM. GPA | B28: (A) | C28: (B) | D28: (C) | E28: (D) | F28: (E) | G28: (F) | H28: (G) | I28: (H) | J28: (I) | K28: (J) | L28: (K) | M28: (L) | N28: Transfers (External Only)
B29: 0-12 | C29: 13-24 | D29: 25-36 | E29: 37-48 | F29: 49-60 | G29: 61-72 | H29: 73-84 | I29: 85-96 | J29: 97-108 | K29: 109-120 | L29: 121+ | M29: TOTAL
A30: 0-.50 | M30: =SUM(B30:L30) -> 0
A31: .51-1.00 | M31: 0
A32: 1.01-1.50 | M32: 0
A33: 1.51-1.75 | M33: 0
A34: 1.76-1.99 | M34: 0
A35: 2.00-2.29 | M35: 0
A36: 2.30-2.69 | M36: 0
A37: 2.70-3.00 | M37: 0
A38: 3.01-3.29 | M38: 0
A39: 3.30-3.69 | M39: 0
A40: 3.70-4.00 | M40: 0
A41: 4.01-4.30 | M41: 0
A42: TOTAL | B42: =SUM(B30:B41) -> 0 | C42: 0 | D42: 0 | E42: 0 | F42: 0 | G42: 0 | H42: 0 | I42: 0 | J42: 0 | K42: 0 | L42: 0 | M42: 0 | N42: 0
A44: #2 Total Credits attempted/earned | F44: Non-Degree | I44: Degree | L44: TOTAL
A45: TOTAL # OF CREDITS ATTEMPTED: | L45: =SUM(F45,I45) -> 0
A46: TOTAL # OF CREDITS EARNED: | L46: =SUM(F46,I46) -> 0
A48: #3 TOTAL # STUDS. WITH AWARD COUNTER = .50 NOT MAKING SATISFACTORY PROGRESS:
A52: 7B: AWARD COUNTER = 1.00
A53: #1 Distribute students by total credits earned and cumulative gpa.
B55: TOTAL CUMULATIVE # OF CREDITS EARNED
A56: CUM. GPA | B56: (A) | C56: (B) | D56: (C) | E56: (D) | F56: (E) | G56: (F) | H56: (G) | I56: (H) | J56: (I) | K56: (J) | L56: (K) | M56: (L) | N56: (M)
B57: 0-12 | C57: 13-24 | D57: 25-36 | E57: 37-48 | F57: 49-60 | G57: 61-72 | H57: 73-84 | I57: 85-96 | J57: 97-108 | K57: 109-120 | L57: 121+ | M57: TOTAL | N57: Transfers (External Only)
A58: 0-.50 | M58: =SUM(B58:L58) -> 0
A59: .51-1.00 | M59: 0
A60: 1.01-1.50 | M60: 0
A61: 1.51-1.75 | M61: 0
A62: 1.76-1.99 | M62: 0
A63: 2.00-2.29 | M63: 0
A64: 2.30-2.69 | M64: 0
A65: 2.70-3.00 | M65: 0
A66: 3.01-3.29 | M66: 0
A67: 3.30-3.69 | M67: 0
A68: 3.70-4.00 | M68: 0
A69: 4.01-4.30 | M69: 0
A70: TOTAL | B70: =SUM(B58:B69) -> 0 | C70: 0 | D70: 0 | E70: 0 | F70: 0 | G70: 0 | H70: 0 | I70: 0 | J70: 0 | K70: 0 | L70: 0 | M70: 0 | N70: 0
A72: #2 Credits attempted/earned | F72: Non-Degree | I72: Degree | L72: TOTAL
A73: TOTAL # OF CREDITS ATTEMPTED: | L73: =SUM(F73,I73) -> 0
A74: TOTAL # OF CREDITS EARNED: | L74: =SUM(F74,I74) -> 0
A76: #3 TOTAL # STUDS. WITH AWARD COUNTER = 1.00 NOT MAKING SATISFACTORY PROGRESS:
A80: 7C: AWARD COUNTER = 1.50 and up (all students except those reported in 7A and 7B)
A81: #1 Distribute students by total credits earned and cumulative gpa.
B83: TOTAL CUMULATIVE # OF CREDITS EARNED
A84: CUM. GPA | B84: (A) | C84: (B) | D84: (C) | E84: (D) | F84: (E) | G84: (F) | H84: (G) | I84: (H) | J84: (I) | K84: (J) | L84: (K) | M84: (L) | N84: (M)
B85: 0-12 | C85: 13-24 | D85: 25-36 | E85: 37-48 | F85: 49-60 | G85: 61-72 | H85: 73-84 | I85: 85-96 | J85: 97-108 | K85: 109-120 | L85: 121+ | M85: TOTAL | N85: Transfers (External Only)
A86: 0-.50 | M86: =SUM(B86:L86) -> 0
A87: .51-1.00 | M87: 0
A88: 1.01-1.50 | M88: 0
A89: 1.51-1.75 | M89: 0
A90: 1.76-1.99 | M90: 0
A91: 2.00-2.29 | M91: 0
A92: 2.30-2.69 | M92: 0
A93: 2.70-3.00 | M93: 0
A94: 3.01-3.29 | M94: 0
A95: 3.30-3.69 | M95: 0
A96: 3.70-4.00 | M96: 0
A97: 4.01-4.30 | M97: 0
A98: TOTAL | B98: =SUM(B86:B97) -> 0 | C98: 0 | D98: 0 | E98: 0 | F98: 0 | G98: 0 | H98: 0 | I98: 0 | J98: 0 | K98: 0 | L98: 0 | M98: 0 | N98: 0
A100: #2 Credits attempted/earned | F100: Non-Degree | I100: Degree | L100: TOTAL
A101: TOTAL # OF CREDITS ATTEMPTED: | L101: =SUM(F101,I101) -> 0
A102: TOTAL # OF CREDITS EARNED: | L102: =SUM(F102,I102) -> 0
A104: #3 TOTAL # STUDS. WITH AWARD COUNTER = 1.50 & UP NOT MAKING SATIS. PROGRESS:
A107: 7D: AWARD COUNTER = NON-FUNDED STUDENTS
A108: #1 Distribute students by total credits earned and cumulative gpa.
B110: TOTAL CUMULATIVE # OF CREDITS EARNED AT YOUR INSTITUTION
A111: CUM. GPA | B111: (A) | C111: (B) | D111: (C) | E111: (D) | F111: (E) | G111: (F) | H111: (G) | I111: (H) | J111: (I) | K111: (J) | L111: (K) | M111: (L) | N111: (M)
B112: 0-12 | C112: 13-24 | D112: 25-36 | E112: 37-48 | F112: 49-60 | G112: 61-72 | H112: 73-84 | I112: 85-96 | J112: 97-108 | K112: 109-120 | L112: 121+ | M112: TOTAL | N112: Transfers (External Only)
A113: 0-.50 | M113: =SUM(B113:L113) -> 0
A114: .51-1.00 | M114: 0
A115: 1.01-1.50 | M115: 0
A116: 1.51-1.75 | M116: 0
A117: 1.76-1.99 | M117: 0
A118: 2.00-2.29 | M118: 0
A119: 2.30-2.69 | M119: 0
A120: 2.70-3.00 | M120: 0
A121: 3.01-3.29 | M121: 0
A122: 3.30-3.69 | M122: 0
A123: 3.70-4.00 | M123: 0
A124: 4.01-4.30 | M124: 0
A125: TOTAL | B125: =SUM(B113:B124) -> 0 | C125: 0 | D125: 0 | E125: 0 | F125: 0 | G125: 0 | H125: 0 | I125: 0 | J125: 0 | K125: 0 | L125: 0 | M125: 0 | N125: 0
A127: #2 Total Credits attempted/earned | F127: Non-Degree | I127: Degree | L127: TOTAL
A128: TOTAL # OF CREDITS ATTEMPTED: | L128: =SUM(F128,I128) -> 0
A129: TOTAL # OF CREDITS EARNED: | L129: =SUM(F129,I129) -> 0
A131: #3 TOTAL # OF NON-FUNDED STUDENTS NOT MAKING SATISFACTORY PROGRESS:
A135: TOTAL NUMBER OF STUDENTS LISTED IN ANNUAL REPORT SUMMARY, Question #2: | L135: =SUMMARY!G24 -> 0
A137: TOTAL NUMBER OF STUDENTS LISTED IN TABLES 7A - 7D = | L137: =SUM(M42+M70+M98+M125) -> 0
A139: TOTAL NUMBER OF EXTERNAL TRANSFERS LISTED IN TABLES 7A - 7D = (This amount must match the information in question 3C on the Summary tab) | L139: =SUM(N42,N70,N98,N125) -> 0

Sheet Table A-D Reference Charts
B1: The information below is provided as a reference tool ONLY. The data reflected within Tables 7A-7D must fall within the identified ranges indicated below.
B2: Total Cumulative # of Credits Earned Minimum and Maximum Chart
B3: Credits Ranges
B4: 0-12 | D4: 13-24 | F4: 25-36 | H4: 37-48 | J4: 49-60 | L4: 61-72 | N4: 73-84 | P4: 85-96 | R4: 97-108 | T4: 109-120 | V4: 121+ | X4: Total Credits Earned
B5: Min | C5: Max | D5: Min | E5: Max | F5: Min | G5: Max | H5: Min | I5: Max | J5: Min | K5: Max | L5: Min | M5: Max | N5: Min | O5: Max | P5: Min | Q5: Max | R5: Min | S5: Max | T5: Min | U5: Max | V5: Min | W5: Max | X5: Min | Y5: Max
B6: 0 | C6: 12 | D6: 13 | E6: 24 | F6: 25 | G6: 36 | H6: 37 | I6: 48 | J6: 49 | K6: 60 | L6: 61 | M6: 72 | N6: 73 | O6: 84 | P6: 85 | Q6: 96 | R6: 97 | S6: 108 | T6: 109 | U6: 120 | V6: 121 | W6: 200 | X6: =SUM(B6,D6,F6,H6,J6,L6,N6,P6,R6,T6,V6) -> 670 | Y6: =SUM(C6,E6,G6,I6,K6,M6,O6,Q6,S6,U6,W6) -> 860
B8: Table 7A Reference Chart
B9: 0-12 | D9: 13-24 | F9: 25-36 | H9: 37-48 | J9: 49-60 | L9: 61-72 | N9: 73-84 | P9: 85-96 | R9: 97-108 | T9: 109-120 | V9: 121+ | X9: Total Credits Earned
B10: Min | C10: Max | D10: Min | E10: Max | F10: Min | G10: Max | H10: Min | I10: Max | J10: Min | K10: Max | L10: Min | M10: Max | N10: Min | O10: Max | P10: Min | Q10: Max | R10: Min | S10: Max | T10: Min | U10: Max | V10: Min | W10: Max | X10: Min | Y10: Max
B11: ='ARTAB 7'!B42*'Table A-D Reference Charts'!B6 -> 0 | C11: ='ARTAB 7'!B42*C6 -> 0 | D11: ='ARTAB 7'!C42*'Table A-D Reference Charts'!D6 -> 0 | E11: ='ARTAB 7'!C42*E6 -> 0 | F11: ='ARTAB 7'!D42*F6 -> 0 | G11: ='ARTAB 7'!D42*G6 -> 0 | H11: ='ARTAB 7'!E42*H6 -> 0 | I11: ='ARTAB 7'!E42*I6 -> 0 | J11: ='ARTAB 7'!F42*J6 -> 0 | K11: ='ARTAB 7'!F42*K6 -> 0 | L11: ='ARTAB 7'!G42*L6 -> 0 | M11: ='ARTAB 7'!G42*M6 -> 0 | N11: ='ARTAB 7'!H42*N6 -> 0 | O11: ='ARTAB 7'!H42*O6 -> 0 | P11: ='ARTAB 7'!I42*P6 -> 0 | Q11: ='ARTAB 7'!I42*Q6 -> 0 | R11: ='ARTAB 7'!J42*R6 -> 0 | S11: ='ARTAB 7'!J42*S6 -> 0 | T11: ='ARTAB 7'!K42*T6 -> 0 | U11: ='ARTAB 7'!K42*U6 -> 0 | V11: ='ARTAB 7'!L42*V6 -> 0 | W11: ='ARTAB 7'!L42*W6 -> 0 | X11: =SUM(B11,D11,F11,H11,J11,L11,N11,P11,R11,T11,V11) -> 0 | Y11: =SUM(C11,E11,G11,I11,K11,M11,O11,Q11,S11,U11,W11) -> 0
B13: Table 7B Reference Chart
B14: 0-12 | D14: 13-24 | F14: 25-36 | H14: 37-48 | J14: 49-60 | L14: 61-72 | N14: 73-84 | P14: 85-96 | R14: 97-108 | T14: 109-120 | V14: 121+ | X14: Total Credits Earned
B15: Min | C15: Max | D15: Min | E15: Max | F15: Min | G15: Max | H15: Min | I15: Max | J15: Min | K15: Max | L15: Min | M15: Max | N15: Min | O15: Max | P15: Min | Q15: Max | R15: Min | S15: Max | T15: Min | U15: Max | V15: Min | W15: Max | X15: Min | Y15: Max
B16: ='ARTAB 7'!B70*'Table A-D Reference Charts'!B6 -> 0 | C16: ='ARTAB 7'!B70*'Table A-D Reference Charts'!C6 -> 0 | D16: ='ARTAB 7'!C70*'Table A-D Reference Charts'!D6 -> 0 | E16: ='ARTAB 7'!C70*'Table A-D Reference Charts'!E6 -> 0 | F16: ='ARTAB 7'!D70*'Table A-D Reference Charts'!F6 -> 0 | G16: ='ARTAB 7'!D70*'Table A-D Reference Charts'!G6 -> 0 | H16: ='ARTAB 7'!E70*'Table A-D Reference Charts'!H6 -> 0 | I16: ='ARTAB 7'!E70*'Table A-D Reference Charts'!I6 -> 0 | J16: ='ARTAB 7'!F70*'Table A-D Reference Charts'!J6 -> 0 | K16: ='ARTAB 7'!F70*'Table A-D Reference Charts'!K6 -> 0 | L16: ='ARTAB 7'!G70*'Table A-D Reference Charts'!L6 -> 0 | M16: ='ARTAB 7'!G70*'Table A-D Reference Charts'!M6 -> 0 | N16: ='ARTAB 7'!H70*'Table A-D Reference Charts'!N6 -> 0 | O16: ='ARTAB 7'!H70*'Table A-D Reference Charts'!O6 -> 0 | P16: ='ARTAB 7'!I70*P6 -> 0 | Q16: ='ARTAB 7'!I70*Q6 -> 0 | R16: ='ARTAB 7'!J70*R6 -> 0 | S16: ='ARTAB 7'!J70*S6 -> 0 | T16: ='ARTAB 7'!K70*T6 -> 0 | U16: ='ARTAB 7'!K70*U6 -> 0 | V16: ='ARTAB 7'!L70*V6 -> 0 | W16: ='ARTAB 7'!L70*W6 -> 0 | X16: =SUM(B16,D16,F16,H16,J16,L16,N16,P16,R16,T16,V16) -> 0 | Y16: =SUM(C16,E16,G16,I16,K16,M16,O16,Q16,S16,U16,W16) -> 0
B18: Table 7C Reference Chart
B19: 0-12 | D19: 13-24 | F19: 25-36 | H19: 37-48 | J19: 49-60 | L19: 61-72 | N19: 73-84 | P19: 85-96 | R19: 97-108 | T19: 109-120 | V19: 121+ | X19: Total Credits Earned
B20: Min | C20: Max | D20: Min | E20: Max | F20: Min | G20: Max | H20: Min | I20: Max | J20: Min | K20: Max | L20: Min | M20: Max | N20: Min | O20: Max | P20: Min | Q20: Max | R20: Min | S20: Max | T20: Min | U20: Max | V20: Min | W20: Max | X20: Min | Y20: Max
B21: ='ARTAB 7'!B98*'Table A-D Reference Charts'!B6 -> 0 | C21: ='ARTAB 7'!B98*C6 -> 0 | D21: ='ARTAB 7'!C98*'Table A-D Reference Charts'!D6 -> 0 | E21: ='ARTAB 7'!C98*E6 -> 0 | F21: ='ARTAB 7'!D98*F6 -> 0 | G21: ='ARTAB 7'!D98*G6 -> 0 | H21: ='ARTAB 7'!E98*H6 -> 0 | I21: ='ARTAB 7'!E98*I6 -> 0 | J21: ='ARTAB 7'!F98*J6 -> 0 | K21: ='ARTAB 7'!F98*K6 -> 0 | L21: ='ARTAB 7'!G98*L6 -> 0 | M21: ='ARTAB 7'!G98*M6 -> 0 | N21: ='ARTAB 7'!H98*N6 -> 0 | O21: ='ARTAB 7'!H98*O6 -> 0 | P21: ='ARTAB 7'!I98*P6 -> 0 | Q21: ='ARTAB 7'!I98*Q6 -> 0 | R21: ='ARTAB 7'!J98*R6 -> 0 | S21: ='ARTAB 7'!J98*S6 -> 0 | T21: ='ARTAB 7'!K98*T6 -> 0 | U21: ='ARTAB 7'!K98*U6 -> 0 | V21: ='ARTAB 7'!L98*V6 -> 0 | W21: ='ARTAB 7'!L98*W6 -> 0 | X21: =SUM(B21,D21,F21,H21,J21,L21,N21,P21,R21,T21,V21) -> 0 | Y21: =SUM(C21,E21,G21,I21,K21,M21,O21,Q21,S21,U21,W21) -> 0
B23: Table 7D Reference Chart
B24: 0-12 | D24: 13-24 | F24: 25-36 | H24: 37-48 | J24: 49-60 | L24: 61-72 | N24: 73-84 | P24: 85-96 | R24: 97-108 | T24: 109-120 | V24: 121+ | X24: Total Credits Earned
B25: Min | C25: Max | D25: Min | E25: Max | F25: Min | G25: Max | H25: Min | I25: Max | J25: Min | K25: Max | L25: Min | M25: Max | N25: Min | O25: Max | P25: Min | Q25: Max | R25: Min | S25: Max | T25: Min | U25: Max | V25: Min | W25: Max | X25: Min | Y25: Max
B26: ='ARTAB 7'!B125*'Table A-D Reference Charts'!B6 -> 0 | C26: ='ARTAB 7'!B125*C6 -> 0 | D26: ='ARTAB 7'!C125*'Table A-D Reference Charts'!D6 -> 0 | E26: ='ARTAB 7'!C125*E6 -> 0 | F26: ='ARTAB 7'!D125*F6 -> 0 | G26: ='ARTAB 7'!D125*G6 -> 0 | H26: ='ARTAB 7'!E125*H6 -> 0 | I26: ='ARTAB 7'!E125*I6 -> 0 | J26: ='ARTAB 7'!F125*J6 -> 0 | K26: ='ARTAB 7'!F125*K6 -> 0 | L26: ='ARTAB 7'!G125*L6 -> 0 | M26: ='ARTAB 7'!G125*M6 -> 0 | N26: ='ARTAB 7'!H125*N6 -> 0 | O26: ='ARTAB 7'!H125*O6 -> 0 | P26: ='ARTAB 7'!I125*P6 -> 0 | Q26: ='ARTAB 7'!I125*Q6 -> 0 | R26: ='ARTAB 7'!J125*R6 -> 0 | S26: ='ARTAB 7'!J125*S6 -> 0 | T26: ='ARTAB 7'!K125*T6 -> 0 | U26: ='ARTAB 7'!K125*U6 -> 0 | V26: ='ARTAB 7'!L125*V6 -> 0 | W26: ='ARTAB 7'!L125*W6 -> 0 | X26: =SUM(B26,D26,F26,H26,J26,L26,N26,P26,R26,T26,V26) -> 0 | Y26: =SUM(C26,E26,G26,I26,K26,M26,O26,Q26,S26,U26,W26) -> 0

Sheet Total Credits Earned Chart
B1: The information below is provided as a reference tool ONLY. The data reflected within Tables 7A-7D must fall within the identified ranges indicated below.
C2: Total Cumulative # of Credits Earned Minimum and Maximum Chart
B3: # of Students | C3: Credit Ranges
C4: 0-12 | E4: 13-24 | G4: 25-36 | I4: 37-48 | K4: 49-60 | M4: 61-72 | O4: 73-84 | Q4: 85-96 | S4: 97-108 | U4: 109-120 | W4: 121+
C5: Min | D5: Max | E5: Min | F5: Max | G5: Min | H5: Max | I5: Min | J5: Max | K5: Min | L5: Max | M5: Min | N5: Max | O5: Min | P5: Max | Q5: Min | R5: Max | S5: Min | T5: Max | U5: Min | V5: Max | W5: Min | X5: Max
B6: 1 | C6: 0 | D6: 12 | E6: 13 | F6: 24 | G6: 24 | H6: 36 | I6: 37 | J6: 48 | K6: 49 | L6: 60 | M6: 61 | N6: 72 | O6: 73 | P6: 84 | Q6: 85 | R6: 96 | S6: 97 | T6: 108 | U6: 109 | V6: 120 | W6: 121 | X6: 200
B7: 2 | C7: =C$6*$B7 -> 0 | D7: =D$6*$B7 -> 24 | E7: 26 | F7: 48 | G7: 48 | H7: 72 | I7: 74 | J7: =J$6*$B7 -> 96 | K7: 98 | L7: 120 | M7: 122 | N7: 144 | O7: 146 | P7: 168 | Q7: 170 | R7: 192 | S7: 194 | T7: 216 | U7: 218 | V7: 240 | W7: 242 | X7: 400
B8: 3 | C8: 0 | D8: =D$6*$B8 -> 36 | E8: 39 | F8: 72 | G8: 72 | H8: 108 | I8: 111 | J8: =J$6*$B8 -> 144 | K8: =K$6*$B8 -> 147 | L8: 180 | M8: 183 | N8: 216 | O8: 219 | P8: 252 | Q8: 255 | R8: 288 | S8: 291 | T8: 324 | U8: 327 | V8: 360 | W8: 363 | X8: 600
B9: 4 | C9: 0 | D9: 48 | E9: 52 | F9: 96 | G9: 96 | H9: 144 | I9: 148 | J9: 192 | K9: 196 | L9: 240 | M9: 244 | N9: 288 | O9: 292 | P9: 336 | Q9: 340 | R9: 384 | S9: 388 | T9: 432 | U9: 436 | V9: 480 | W9: 484 | X9: 800
B10: 5 | C10: 0 | D10: 60 | E10: 65 | F10: 120 | G10: 120 | H10: 180 | I10: 185 | J10: 240 | K10: 245 | L10: 300 | M10: 305 | N10: 360 | O10: 365 | P10: 420 | Q10: 425 | R10: 480 | S10: 485 | T10: 540 | U10: 545 | V10: 600 | W10: 605 | X10: 1000
B11: 6 | C11: 0 | D11: 72 | E11: 78 | F11: 144 | G11: 144 | H11: 216 | I11: 222 | J11: 288 | K11: 294 | L11: 360 | M11: 366 | N11: 432 | O11: 438 | P11: 504 | Q11: 510 | R11: 576 | S11: 582 | T11: 648 | U11: 654 | V11: 720 | W11: 726 | X11: 1200
B12: 7 | C12: 0 | D12: 84 | E12: 91 | F12: 168 | G12: 168 | H12: 252 | I12: 259 | J12: 336 | K12: 343 | L12: 420 | M12: 427 | N12: 504 | O12: 511 | P12: 588 | Q12: 595 | R12: 672 | S12: 679 | T12: 756 | U12: 763 | V12: 840 | W12: 847 | X12: 1400
B13: 8 | C13: 0 | D13: 96 | E13: 104 | F13: 192 | G13: 192 | H13: 288 | I13: 296 | J13: 384 | K13: 392 | L13: 480 | M13: 488 | N13: 576 | O13: 584 | P13: 672 | Q13: 680 | R13: 768 | S13: 776 | T13: 864 | U13: 872 | V13: 960 | W13: 968 | X13: 1600
B14: 9 | C14: 0 | D14: 108 | E14: 117 | F14: 216 | G14: 216 | H14: 324 | I14: 333 | J14: 432 | K14: 441 | L14: 540 | M14: 549 | N14: 648 | O14: 657 | P14: 756 | Q14: 765 | R14: 864 | S14: 873 | T14: 972 | U14: 981 | V14: 1080 | W14: 1089 | X14: 1800
B15: 10 | C15: 0 | D15: 120 | E15: 130 | F15: 240 | G15: 240 | H15: 360 | I15: 370 | J15: 480 | K15: 490 | L15: 600 | M15: 610 | N15: 720 | O15: 730 | P15: 840 | Q15: 850 | R15: 960 | S15: 970 | T15: 1080 | U15: 1090 | V15: 1200 | W15: 1210 | X15: 2000
B16: 11 | C16: 0 | D16: 132 | E16: 143 | F16: 264 | G16: 264 | H16: 396 | I16: 407 | J16: 528 | K16: 539 | L16: 660 | M16: 671 | N16: 792 | O16: 803 | P16: 924 | Q16: 935 | R16: 1056 | S16: 1067 | T16: 1188 | U16: 1199 | V16: 1320 | W16: 1331 | X16: 2200
B17: 12 | C17: 0 | D17: 144 | E17: 156 | F17: 288 | G17: 288 | H17: 432 | I17: 444 | J17: 576 | K17: 588 | L17: 720 | M17: 732 | N17: 864 | O17: 876 | P17: 1008 | Q17: 1020 | R17: 1152 | S17: 1164 | T17: 1296 | U17: 1308 | V17: 1440 | W17: 1452 | X17: 2400
B18: 13 | C18: 0 | D18: 156 | E18: 169 | F18: 312 | G18: 312 | H18: 468 | I18: 481 | J18: 624 | K18: 637 | L18: 780 | M18: 793 | N18: 936 | O18: 949 | P18: 1092 | Q18: 1105 | R18: 1248 | S18: 1261 | T18: 1404 | U18: 1417 | V18: 1560 | W18: 1573 | X18: 2600
B19: 14 | C19: 0 | D19: 168 | E19: 182 | F19: 336 | G19: 336 | H19: 504 | I19: 518 | J19: 672 | K19: 686 | L19: 840 | M19: 854 | N19: 1008 | O19: 1022 | P19: 1176 | Q19: 1190 | R19: 1344 | S19: 1358 | T19: 1512 | U19: 1526 | V19: =V$6*$B19 -> 1680 | W19: 1694 | X19: 2800
B20: 15 | C20: 0 | D20: 180 | E20: 195 | F20: 360 | G20: 360 | H20: 540 | I20: 555 | J20: 720 | K20: 735 | L20: 900 | M20: 915 | N20: 1080 | O20: 1095 | P20: 1260 | Q20: 1275 | R20: 1440 | S20: 1455 | T20: 1620 | U20: 1635 | V20: 1800 | W20: 1815 | X20: 3000
B21: 16 | C21: 0 | D21: 192 | E21: 208 | F21: 384 | G21: 384 | H21: 576 | I21: 592 | J21: 768 | K21: 784 | L21: 960 | M21: 976 | N21: 1152 | O21: 1168 | P21: 1344 | Q21: 1360 | R21: 1536 | S21: 1552 | T21: 1728 | U21: 1744 | V21: 1920 | W21: 1936 | X21: 3200
B22: 17 | C22: 0 | D22: 204 | E22: 221 | F22: 408 | G22: 408 | H22: 612 | I22: 629 | J22: 816 | K22: 833 | L22: 1020 | M22: 1037 | N22: 1224 | O22: 1241 | P22: 1428 | Q22: 1445 | R22: 1632 | S22: 1649 | T22: 1836 | U22: 1853 | V22: 2040 | W22: 2057 | X22: 3400
B23: 18 | C23: 0 | D23: 216 | E23: 234 | F23: 432 | G23: 432 | H23: 648 | I23: 666 | J23: 864 | K23: 882 | L23: 1080 | M23: 1098 | N23: 1296 | O23: 1314 | P23: 1512 | Q23: 1530 | R23: 1728 | S23: 1746 | T23: 1944 | U23: 1962 | V23: 2160 | W23: 2178 | X23: 3600
B24: 19 | C24: 0 | D24: 228 | E24: 247 | F24: 456 | G24: 456 | H24: 684 | I24: 703 | J24: 912 | K24: 931 | L24: 1140 | M24: 1159 | N24: 1368 | O24: 1387 | P24: 1596 | Q24: 1615 | R24: 1824 | S24: 1843 | T24: 2052 | U24: 2071 | V24: 2280 | W24: 2299 | X24: 3800
B25: 20 | C25: 0 | D25: 240 | E25: 260 | F25: 480 | G25: 480 | H25: 720 | I25: 740 | J25: 960 | K25: 980 | L25: 1200 | M25: 1220 | N25: 1440 | O25: 1460 | P25: 1680 | Q25: 1700 | R25: 1920 | S25: 1940 | T25: 2160 | U25: 2180 | V25: 2400 | W25: 2420 | X25: 4000
B26: 21 | C26: 0 | D26: 252 | E26: 273 | F26: 504 | G26: 504 | H26: 756 | I26: 777 | J26: 1008 | K26: 1029 | L26: 1260 | M26: 1281 | N26: 1512 | O26: 1533 | P26: 1764 | Q26: 1785 | R26: 2016 | S26: 2037 | T26: 2268 | U26: 2289 | V26: 2520 | W26: 2541 | X26: 4200
B27: 22 | C27: 0 | D27: 264 | E27: 286 | F27: 528 | G27: 528 | H27: 792 | I27: 814 | J27: 1056 | K27: 1078 | L27: 1320 | M27: 1342 | N27: 1584 | O27: 1606 | P27: 1848 | Q27: 1870 | R27: 2112 | S27: 2134 | T27: 2376 | U27: 2398 | V27: 2640 | W27: 2662 | X27: 4400
B28: 23 | C28: 0 | D28: 276 | E28: 299 | F28: 552 | G28: 552 | H28: 828 | I28: 851 | J28: 1104 | K28: 1127 | L28: 1380 | M28: 1403 | N28: 1656 | O28: 1679 | P28: 1932 | Q28: 1955 | R28: 2208 | S28: 2231 | T28: 2484 | U28: 2507 | V28: 2760 | W28: 2783 | X28: 4600
B29: 24 | C29: 0 | D29: 288 | E29: 312 | F29: 576 | G29: 576 | H29: 864 | I29: 888 | J29: 1152 | K29: 1176 | L29: 1440 | M29: 1464 | N29: 1728 | O29: 1752 | P29: 2016 | Q29: 2040 | R29: 2304 | S29: 2328 | T29: 2592 | U29: 2616 | V29: 2880 | W29: 2904 | X29: 4800
B30: 25 | C30: 0 | D30: 300 | E30: 325 | F30: 600 | G30: 600 | H30: 900 | I30: 925 | J30: 1200 | K30: 1225 | L30: 1500 | M30: 1525 | N30: 1800 | O30: 1825 | P30: 2100 | Q30: 2125 | R30: 2400 | S30: 2425 | T30: 2700 | U30: 2725 | V30: 3000 | W30: 3025 | X30: 5000
B31: 26 | C31: 0 | D31: 312 | E31: 338 | F31: 624 | G31: 624 | H31: 936 | I31: 962 | J31: 1248 | K31: 1274 | L31: 1560 | M31: 1586 | N31: 1872 | O31: 1898 | P31: 2184 | Q31: 2210 | R31: 2496 | S31: 2522 | T31: 2808 | U31: 2834 | V31: 3120 | W31: 3146 | X31: 5200
B32: 27 | C32: 0 | D32: =D$6*$B32 -> 324 | E32: 351 | F32: 648 | G32: 648 | H32: 972 | I32: 999 | J32: 1296 | K32: 1323 | L32: 1620 | M32: 1647 | N32: 1944 | O32: 1971 | P32: 2268 | Q32: 2295 | R32: 2592 | S32: 2619 | T32: 2916 | U32: 2943 | V32: 3240 | W32: 3267 | X32: 5400
B33: 28 | C33: 0 | D33: 336 | E33: 364 | F33: 672 | G33: 672 | H33: 1008 | I33: 1036 | J33: 1344 | K33: 1372 | L33: 1680 | M33: 1708 | N33: 2016 | O33: 2044 | P33: 2352 | Q33: 2380 | R33: 2688 | S33: 2716 | T33: 3024 | U33: 3052 | V33: 3360 | W33: 3388 | X33: 5600
B34: 29 | C34: 0 | D34: 348 | E34: 377 | F34: 696 | G34: 696 | H34: 1044 | I34: 1073 | J34: 1392 | K34: 1421 | L34: 1740 | M34: 1769 | N34: 2088 | O34: 2117 | P34: 2436 | Q34: 2465 | R34: 2784 | S34: 2813 | T34: 3132 | U34: 3161 | V34: 3480 | W34: 3509 | X34: 5800
B35: 30 | C35: 0 | D35: 360 | E35: 390 | F35: 720 | G35: 720 | H35: 1080 | I35: 1110 | J35: 1440 | K35: 1470 | L35: 1800 | M35: 1830 | N35: 2160 | O35: 2190 | P35: 2520 | Q35: 2550 | R35: 2880 | S35: 2910 | T35: 3240 | U35: 3270 | V35: 3600 | W35: 3630 | X35: 6000
B36: 31 | C36: 0 | D36: 372 | E36: 403 | F36: 744 | G36: 744 | H36: 1116 | I36: 1147 | J36: 1488 | K36: 1519 | L36: 1860 | M36: 1891 | N36: 2232 | O36: 2263 | P36: 2604 | Q36: 2635 | R36: 2976 | S36: 3007 | T36: 3348 | U36: 3379 | V36: 3720 | W36: 3751 | X36: 6200
B37: 32 | C37: 0 | D37: 384 | E37: 416 | F37: 768 | G37: 768 | H37: 1152 | I37: 1184 | J37: 1536 | K37: 1568 | L37: 1920 | M37: 1952 | N37: 2304 | O37: 2336 | P37: 2688 | Q37: 2720 | R37: 3072 | S37: 3104 | T37: 3456 | U37: 3488 | V37: 3840 | W37: 3872 | X37: 6400
B38: 33 | C38: 0 | D38: 396 | E38: 429 | F38: 792 | G38: 792 | H38: 1188 | I38: 1221 | J38: 1584 | K38: 1617 | L38: 1980 | M38: 2013 | N38: 2376 | O38: 2409 | P38: 2772 | Q38: 2805 | R38: 3168 | S38: 3201 | T38: 3564 | U38: 3597 | V38: 3960 | W38: 3993 | X38: 6600
B39: 34 | C39: 0 | D39: 408 | E39: 442 | F39: 816 | G39: 816 | H39: 1224 | I39: 1258 | J39: 1632 | K39: 1666 | L39: 2040 | M39: 2074 | N39: 2448 | O39: 2482 | P39: 2856 | Q39: 2890 | R39: 3264 | S39: 3298 | T39: 3672 | U39: 3706 | V39: 4080 | W39: 4114 | X39: 6800
B40: 35 | C40: 0 | D40: 420 | E40: 455 | F40: 840 | G40: 840 | H40: 1260 | I40: 1295 | J40: 1680 | K40: 1715 | L40: 2100 | M40: 2135 | N40: 2520 | O40: 2555 | P40: 2940 | Q40: 2975 | R40: 3360 | S40: 3395 | T40: 3780 | U40: 3815 | V40: 4200 | W40: 4235 | X40: 7000
B41: 36 | C41: 0 | D41: 432 | E41: 468 | F41: 864 | G41: 864 | H41: 1296 | I41: 1332 | J41: 1728 | K41: 1764 | L41: 2160 | M41: 2196 | N41: 2592 | O41: 2628 | P41: 3024 | Q41: 3060 | R41: 3456 | S41: 3492 | T41: 3888 | U41: 3924 | V41: 4320 | W41: 4356 | X41: 7200
B42: 37 | C42: 0 | D42: 444 | E42: 481 | F42: 888 | G42: 888 | H42: 1332 | I42: 1369 | J42: 1776 | K42: 1813 | L42: 2220 | M42: 2257 | N42: 2664 | O42: 2701 | P42: 3108 | Q42: 3145 | R42: 3552 | S42: 3589 | T42: 3996 | U42: 4033 | V42: 4440 | W42: 4477 | X42: 7400
B43: 38 | C43: 0 | D43: 456 | E43: 494 | F43: 912 | G43: 912 | H43: 1368 | I43: 1406 | J43: 1824 | K43: 1862 | L43: 2280 | M43: 2318 | N43: 2736 | O43: 2774 | P43: 3192 | Q43: 3230 | R43: 3648 | S43: 3686 | T43: 4104 | U43: 4142 | V43: 4560 | W43: 4598 | X43: 7600
B44: 39 | C44: 0 | D44: 468 | E44: 507 | F44: 936 | G44: =G$6*$B44 -> 936 | H44: 1404 | I44: 1443 | J44: 1872 | K44: 1911 | L44: 2340 | M44: 2379 | N44: 2808 | O44: 2847 | P44: 3276 | Q44: 3315 | R44: 3744 | S44: 3783 | T44: 4212 | U44: 4251 | V44: 4680 | W44: 4719 | X44: 7800
B45: 40 | C45: 0 | D45: 480 | E45: 520 | F45: 960 | G45: 960 | H45: 1440 | I45: 1480 | J45: 1920 | K45: 1960 | L45: 2400 | M45: 2440 | N45: 2880 | O45: 2920 | P45: 3360 | Q45: 3400 | R45: 3840 | S45: 3880 | T45: 4320 | U45: 4360 | V45: 4800 | W45: 4840 | X45: 8000
B46: 41 | C46: 0 | D46: 492 | E46: 533 | F46: 984 | G46: 984 | H46: 1476 | I46: 1517 | J46: 1968 | K46: 2009 | L46: 2460 | M46: 2501 | N46: 2952 | O46: 2993 | P46: 3444 | Q46: 3485 | R46: 3936 | S46: 3977 | T46: 4428 | U46: 4469 | V46: 4920 | W46: 4961 | X46: 8200
B47: 42 | C47: 0 | D47: 504 | E47: 546 | F47: 1008 | G47: 1008 | H47: 1512 | I47: 1554 | J47: 2016 | K47: 2058 | L47: 2520 | M47: 2562 | N47: 3024 | O47: 3066 | P47: 3528 | Q47: 3570 | R47: 4032 | S47: 4074 | T47: 4536 | U47: 4578 | V47: 5040 | W47: 5082 | X47: 8400
B48: 43 | C48: 0 | D48: 516 | E48: 559 | F48: 1032 | G48: 1032 | H48: 1548 | I48: 1591 | J48: 2064 | K48: 2107 | L48: 2580 | M48: 2623 | N48: 3096 | O48: 3139 | P48: 3612 | Q48: 3655 | R48: 4128 | S48: 4171 | T48: 4644 | U48: 4687 | V48: 5160 | W48: 5203 | X48: 8600
B49: 44 | C49: 0 | D49: 528 | E49: 572 | F49: 1056 | G49: 1056 | H49: 1584 | I49: 1628 | J49: 2112 | K49: 2156 | L49: 2640 | M49: 2684 | N49: 3168 | O49: 3212 | P49: 3696 | Q49: 3740 | R49: 4224 | S49: 4268 | T49: 4752 | U49: 4796 | V49: 5280 | W49: 5324 | X49: 8800
B50: 45 | C50: 0 | D50: 540 | E50: 585 | F50: 1080 | G50: 1080 | H50: 1620 | I50: 1665 | J50: 2160 | K50: 2205 | L50: 2700 | M50: 2745 | N50: 3240 | O50: 3285 | P50: 3780 | Q50: 3825 | R50: 4320 | S50: 4365 | T50: 4860 | U50: 4905 | V50: 5400 | W50: 5445 | X50: 9000
B51: 46 | C51: 0 | D51: 552 | E51: 598 | F51: 1104 | G51: 1104 | H51: 1656 | I51: 1702 | J51: 2208 | K51: 2254 | L51: 2760 | M51: 2806 | N51: 3312 | O51: 3358 | P51: 3864 | Q51: 3910 | R51: 4416 | S51: 4462 | T51: 4968 | U51: 5014 | V51: 5520 | W51: 5566 | X51: 9200
B52: 47 | C52: 0 | D52: 564 | E52: 611 | F52: 1128 | G52: 1128 | H52: 1692 | I52: 1739 | J52: 2256 | K52: 2303 | L52: 2820 | M52: 2867 | N52: 3384 | O52: 3431 | P52: 3948 | Q52: 3995 | R52: 4512 | S52: 4559 | T52: 5076 | U52: 5123 | V52: 5640 | W52: 5687 | X52: 9400
B53: 48 | C53: 0 | D53: 576 | E53: 624 | F53: 1152 | G53: 1152 | H53: 1728 | I53: 1776 | J53: 2304 | K53: 2352 | L53: 2880 | M53: 2928 | N53: 3456 | O53: 3504 | P53: 4032 | Q53: 4080 | R53: 4608 | S53: 4656 | T53: 5184 | U53: 5232 | V53: 5760 | W53: 5808 | X53: 9600
B54: 49 | C54: 0 | D54: 588 | E54: 637 | F54: 1176 | G54: 1176 | H54: 1764 | I54: 1813 | J54: 2352 | K54: 2401 | L54: 2940 | M54: 2989 | N54: 3528 | O54: 3577 | P54: 4116 | Q54: 4165 | R54: 4704 | S54: 4753 | T54: 5292 | U54: 5341 | V54: 5880 | W54: 5929 | X54: 9800
B55: 50 | C55: 0 | D55: 600 | E55: 650 | F55: 1200 | G55: 1200 | H55: 1800 | I55: 1850 | J55: 2400 | K55: 2450 | L55: 3000 | M55: 3050 | N55: 3600 | O55: 3650 | P55: 4200 | Q55: 4250 | R55: 4800 | S55: 4850 | T55: 5400 | U55: 5450 | V55: 6000 | W55: 6050 | X55: 10000
B56: 51 | C56: 0 | D56: 612 | E56: 663 | F56: 1224 | G56: 1224 | H56: 1836 | I56: 1887 | J56: =J$6*$B56 -> 2448 | K56: 2499 | L56: 3060 | M56: 3111 | N56: 3672 | O56: 3723 | P56: 4284 | Q56: 4335 | R56: 4896 | S56: 4947 | T56: 5508 | U56: 5559 | V56: 6120 | W56: 6171 | X56: 10200
B57: 52 | C57: 0 | D57: 624 | E57: 676 | F57: 1248 | G57: 1248 | H57: 1872 | I57: 1924 | J57: 2496 | K57: 2548 | L57: 3120 | M57: 3172 | N57: 3744 | O57: 3796 | P57: 4368 | Q57: 4420 | R57: 4992 | S57: 5044 | T57: 5616 | U57: 5668 | V57: 6240 | W57: 6292 | X57: 10400
B58: 53 | C58: 0 | D58: 636 | E58: 689 | F58: 1272 | G58: 1272 | H58: 1908 | I58: 1961 | J58: 2544 | K58: 2597 | L58: 3180 | M58: 3233 | N58: 3816 | O58: 3869 | P58: 4452 | Q58: 4505 | R58: 5088 | S58: 5141 | T58: 5724 | U58: 5777 | V58: 6360 | W58: 6413 | X58: 10600
B59: 54 | C59: 0 | D59: 648 | E59: 702 | F59: 1296 | G59: 1296 | H59: 1944 | I59: 1998 | J59: 2592 | K59: 2646 | L59: 3240 | M59: 3294 | N59: 3888 | O59: 3942 | P59: 4536 | Q59: 4590 | R59: 5184 | S59: 5238 | T59: 5832 | U59: 5886 | V59: 6480 | W59: 6534 | X59: 10800
B60: 55 | C60: 0 | D60: 660 | E60: 715 | F60: 1320 | G60: 1320 | H60: 1980 | I60: 2035 | J60: 2640 | K60: 2695 | L60: 3300 | M60: 3355 | N60: 3960 | O60: 4015 | P60: 4620 | Q60: 4675 | R60: 5280 | S60: 5335 | T60: 5940 | U60: 5995 | V60: 6600 | W60: 6655 | X60: 11000
B61: 56 | C61: 0 | D61: 672 | E61: 728 | F61: 1344 | G61: 1344 | H61: 2016 | I61: 2072 | J61: 2688 | K61: 2744 | L61: 3360 | M61: 3416 | N61: 4032 | O61: 4088 | P61: 4704 | Q61: 4760 | R61: 5376 | S61: 5432 | T61: 6048 | U61: 6104 | V61: 6720 | W61: 6776 | X61: 11200
B62: 57 | C62: 0 | D62: 684 | E62: 741 | F62: 1368 | G62: 1368 | H62: 2052 | I62: 2109 | J62: 2736 | K62: 2793 | L62: 3420 | M62: 3477 | N62: 4104 | O62: 4161 | P62: 4788 | Q62: 4845 | R62: 5472 | S62: 5529 | T62: 6156 | U62: 6213 | V62: 6840 | W62: 6897 | X62: 11400
B63: 58 | C63: 0 | D63: 696 | E63: 754 | F63: 1392 | G63: 1392 | H63: 2088 | I63: 2146 | J63: 2784 | K63: 2842 | L63: 3480 | M63: 3538 | N63: 4176 | O63: 4234 | P63: 4872 | Q63: 4930 | R63: 5568 | S63: 5626 | T63: 6264 | U63: 6322 | V63: 6960 | W63: 7018 | X63: 11600
B64: 59 | C64: 0 | D64: 708 | E64: 767 | F64: 1416 | G64: 1416 | H64: 2124 | I64: 2183 | J64: 2832 | K64: 2891 | L64: 3540 | M64: 3599 | N64: 4248 | O64: 4307 | P64: 4956 | Q64: 5015 | R64: 5664 | S64: 5723 | T64: 6372 | U64: 6431 | V64: 7080 | W64: 7139 | X64: 11800
B65: 60 | C65: 0 | D65: 720 | E65: 780 | F65: 1440 | G65: 1440 | H65: 2160 | I65: 2220 | J65: 2880 | K65: 2940 | L65: 3600 | M65: 3660 | N65: 4320 | O65: 4380 | P65: 5040 | Q65: 5100 | R65: 5760 | S65: 5820 | T65: 6480 | U65: 6540 | V65: 7200 | W65: 7260 | X65: 12000
B66: 61 | C66: 0 | D66: 732 | E66: 793 | F66: 1464 | G66: 1464 | H66: 2196 | I66: 2257 | J66: 2928 | K66: 2989 | L66: 3660 | M66: 3721 | N66: 4392 | O66: 4453 | P66: 5124 | Q66: 5185 | R66: 5856 | S66: 5917 | T66: 6588 | U66: 6649 | V66: 7320 | W66: 7381 | X66: 12200
B67: 62 | C67: 0 | D67: 744 | E67: 806 | F67: 1488 | G67: 1488 | H67: 2232 | I67: 2294 | J67: 2976 | K67: 3038 | L67: 3720 | M67: 3782 | N67: 4464 | O67: 4526 | P67: 5208 | Q67: 5270 | R67: 5952 | S67: 6014 | T67: 6696 | U67: 6758 | V67: 7440 | W67: 7502 | X67: 12400
B68: 63 | C68: 0 | D68: 756 | E68: 819 | F68: 1512 | G68: 1512 | H68: 2268 | I68: 2331 | J68: 3024 | K68: 3087 | L68: 3780 | M68: =M$6*$B68 -> 3843 | N68: 4536 | O68: 4599 | P68: 5292 | Q68: 5355 | R68: 6048 | S68: 6111 | T68: 6804 | U68: 6867 | V68: 7560 | W68: 7623 | X68: 12600
B69: 64 | C69: 0 | D69: 768 | E69: 832 | F69: 1536 | G69: 1536 | H69: 2304 | I69: 2368 | J69: 3072 | K69: 3136 | L69: 3840 | M69: 3904 | N69: 4608 | O69: 4672 | P69: 5376 | Q69: 5440 | R69: 6144 | S69: 6208 | T69: 6912 | U69: 6976 | V69: 7680 | W69: 7744 | X69: 12800
B70: 65 | C70: 0 | D70: 780 | E70: 845 | F70: 1560 | G70: 1560 | H70: 2340 | I70: 2405 | J70: 3120 | K70: 3185 | L70: 3900 | M70: 3965 | N70: 4680 | O70: 4745 | P70: 5460 | Q70: 5525 | R70: 6240 | S70: 6305 | T70: 7020 | U70: 7085 | V70: 7800 | W70: 7865 | X70: 13000
B71: 66 | C71: =C$6*$B71 -> 0 | D71: 792 | E71: 858 | F71: 1584 | G71: 1584 | H71: 2376 | I71: 2442 | J71: 3168 | K71: 3234 | L71: 3960 | M71: 4026 | N71: 4752 | O71: 4818 | P71: 5544 | Q71: 5610 | R71: 6336 | S71: 6402 | T71: 7128 | U71: 7194 | V71: 7920 | W71: 7986 | X71: 13200
B72: 67 | C72: 0 | D72: =D$6*$B72 -> 804 | E72: 871 | F72: 1608 | G72: 1608 | H72: 2412 | I72: 2479 | J72: 3216 | K72: 3283 | L72: 4020 | M72: 4087 | N72: 4824 | O72: 4891 | P72: 5628 | Q72: 5695 | R72: 6432 | S72: 6499 | T72: 7236 | U72: 7303 | V72: 8040 | W72: 8107 | X72: 13400
B73: 68 | C73: 0 | D73: 816 | E73: 884 | F73: 1632 | G73: 1632 | H73: 2448 | I73: 2516 | J73: 3264 | K73: 3332 | L73: 4080 | M73: 4148 | N73: 4896 | O73: 4964 | P73: 5712 | Q73: 5780 | R73: 6528 | S73: 6596 | T73: 7344 | U73: 7412 | V73: 8160 | W73: 8228 | X73: 13600
B74: 69 | C74: 0 | D74: 828 | E74: 897 | F74: 1656 | G74: 1656 | H74: 2484 | I74: 2553 | J74: 3312 | K74: 3381 | L74: 4140 | M74: 4209 | N74: 4968 | O74: 5037 | P74: 5796 | Q74: 5865 | R74: 6624 | S74: 6693 | T74: 7452 | U74: 7521 | V74: 8280 | W74: 8349 | X74: 13800
B75: 70 | C75: 0 | D75: 840 | E75: 910 | F75: 1680 | G75: 1680 | H75: 2520 | I75: 2590 | J75: 3360 | K75: 3430 | L75: 4200 | M75: 4270 | N75: 5040 | O75: 5110 | P75: 5880 | Q75: 5950 | R75: 6720 | S75: 6790 | T75: 7560 | U75: 7630 | V75: 8400 | W75: 8470 | X75: 14000
B76: 71 | C76: 0 | D76: 852 | E76: 923 | F76: 1704 | G76: 1704 | H76: 2556 | I76: 2627 | J76: 3408 | K76: 3479 | L76: 4260 | M76: 4331 | N76: 5112 | O76: 5183 | P76: 5964 | Q76: 6035 | R76: 6816 | S76: 6887 | T76: 7668 | U76: 7739 | V76: 8520 | W76: 8591 | X76: 14200
B77: 72 | C77: 0 | D77: 864 | E77: 936 | F77: 1728 | G77: 1728 | H77: 2592 | I77: 2664 | J77: 3456 | K77: 3528 | L77: 4320 | M77: 4392 | N77: 5184 | O77: 5256 | P77: 6048 | Q77: 6120 | R77: 6912 | S77: 6984 | T77: 7776 | U77: 7848 | V77: 8640 | W77: 8712 | X77: 14400
B78: 73 | C78: 0 | D78: 876 | E78: 949 | F78: 1752 | G78: 1752 | H78: 2628 | I78: 2701 | J78: 3504 | K78: 3577 | L78: 4380 | M78: 4453 | N78: 5256 | O78: 5329 | P78: 6132 | Q78: 6205 | R78: 7008 | S78: 7081 | T78: 7884 | U78: 7957 | V78: 8760 | W78: 8833 | X78: 14600
B79: 74 | C79: 0 | D79: 888 | E79: 962 | F79: 1776 | G79: 1776 | H79: 2664 | I79: 2738 | J79: 3552 | K79: 3626 | L79: 4440 | M79: 4514 | N79: 5328 | O79: 5402 | P79: 6216 | Q79: 6290 | R79: 7104 | S79: 7178 | T79: 7992 | U79: 8066 | V79: 8880 | W79: 8954 | X79: 14800
B80: 75 | C80: 0 | D80: 900 | E80: 975 | F80: 1800 | G80: 1800 | H80: 2700 | I80: 2775 | J80: 3600 | K80: 3675 | L80: 4500 | M80: 4575 | N80: 5400 | O80: 5475 | P80: 6300 | Q80: 6375 | R80: 7200 | S80: 7275 | T80: 8100 | U80: 8175 | V80: 9000 | W80: 9075 | X80: 15000
B81: 76 | C81: 0 | D81: 912 | E81: 988 | F81: 1824 | G81: 1824 | H81: 2736 | I81: 2812 | J81: =J$6*$B81 -> 3648 | K81: 3724 | L81: 4560 | M81: 4636 | N81: 5472 | O81: 5548 | P81: 6384 | Q81: 6460 | R81: 7296 | S81: 7372 | T81: 8208 | U81: 8284 | V81: 9120 | W81: 9196 | X81: 15200
B82: 77 | C82: 0 | D82: 924 | E82: 1001 | F82: 1848 | G82: 1848 | H82: 2772 | I82: 2849 | J82: 3696 | K82: 3773 | L82: 4620 | M82: 4697 | N82: 5544 | O82: 5621 | P82: 6468 | Q82: 6545 | R82: 7392 | S82: 7469 | T82: 8316 | U82: 8393 | V82: 9240 | W82: 9317 | X82: 15400
B83: 78 | C83: 0 | D83: 936 | E83: 1014 | F83: 1872 | G83: 1872 | H83: 2808 | I83: 2886 | J83: 3744 | K83: 3822 | L83: 4680 | M83: 4758 | N83: 5616 | O83: 5694 | P83: 6552 | Q83: 6630 | R83: 7488 | S83: 7566 | T83: 8424 | U83: 8502 | V83: 9360 | W83: 9438 | X83: 15600
B84: 79 | C84: 0 | D84: 948 | E84: 1027 | F84: 1896 | G84: 1896 | H84: 2844 | I84: 2923 | J84: 3792 | K84: 3871 | L84: 4740 | M84: 4819 | N84: 5688 | O84: 5767 | P84: 6636 | Q84: 6715 | R84: 7584 | S84: 7663 | T84: 8532 | U84: 8611 | V84: 9480 | W84: 9559 | X84: 15800
B85: 80 | C85: 0 | D85: 960 | E85: 1040 | F85: 1920 | G85: 1920 | H85: 2880 | I85: 2960 | J85: 3840 | K85: 3920 | L85: 4800 | M85: 4880 | N85: 5760 | O85: 5840 | P85: 6720 | Q85: 6800 | R85: 7680 | S85: 7760 | T85: 8640 | U85: 8720 | V85: 9600 | W85: 9680 | X85: 16000
B86: 81 | C86: 0 | D86: 972 | E86: 1053 | F86: 1944 | G86: 1944 | H86: 2916 | I86: 2997 | J86: 3888 | K86: 3969 | L86: 4860 | M86: 4941 | N86: 5832 | O86: 5913 | P86: 6804 | Q86: 6885 | R86: 7776 | S86: 7857 | T86: 8748 | U86: 8829 | V86: 9720 | W86: 9801 | X86: 16200
B87: 82 | C87: 0 | D87: 984 | E87: 1066 | F87: 1968 | G87: 1968 | H87: 2952 | I87: 3034 | J87: 3936 | K87: 4018 | L87: 4920 | M87: 5002 | N87: 5904 | O87: 5986 | P87: 6888 | Q87: 6970 | R87: 7872 | S87: 7954 | T87: 8856 | U87: 8938 | V87: 9840 | W87: 9922 | X87: 16400
B88: 83 | C88: 0 | D88: 996 | E88: 1079 | F88: 1992 | G88: 1992 | H88: 2988 | I88: 3071 | J88: 3984 | K88: 4067 | L88: 4980 | M88: 5063 | N88: 5976 | O88: 6059 | P88: 6972 | Q88: 7055 | R88: 7968 | S88: 8051 | T88: 8964 | U88: 9047 | V88: 9960 | W88: 10043 | X88: 16600
B89: 84 | C89: 0 | D89: 1008 | E89: 1092 | F89: 2016 | G89: 2016 | H89: 3024 | I89: 3108 | J89: 4032 | K89: 4116 | L89: 5040 | M89: 5124 | N89: 6048 | O89: 6132 | P89: 7056 | Q89: 7140 | R89: 8064 | S89: 8148 | T89: 9072 | U89: 9156 | V89: 10080 | W89: 10164 | X89: 16800
B90: 85 | C90: 0 | D90: 1020 | E90: 1105 | F90: 2040 | G90: 2040 | H90: 3060 | I90: 3145 | J90: 4080 | K90: 4165 | L90: 5100 | M90: 5185 | N90: 6120 | O90: 6205 | P90: 7140 | Q90: 7225 | R90: 8160 | S90: 8245 | T90: 9180 | U90: 9265 | V90: 10200 | W90: 10285 | X90: 17000
B91: 86 | C91: 0 | D91: 1032 | E91: 1118 | F91: 2064 | G91: 2064 | H91: 3096 | I91: 3182 | J91: 4128 | K91: 4214 | L91: 5160 | M91: 5246 | N91: 6192 | O91: 6278 | P91: 7224 | Q91: 7310 | R91: 8256 | S91: 8342 | T91: 9288 | U91: 9374 | V91: 10320 | W91: 10406 | X91: 17200
B92: 87 | C92: 0 | D92: 1044 | E92: 1131 | F92: 2088 | G92: 2088 | H92: 3132 | I92: 3219 | J92: 4176 | K92: 4263 | L92: 5220 | M92: 5307 | N92: 6264 | O92: 6351 | P92: 7308 | Q92: 7395 | R92: 8352 | S92: 8439 | T92: 9396 | U92: 9483 | V92: 10440 | W92: 10527 | X92: 17400
B93: 88 | C93: 0 | D93: 1056 | E93: 1144 | F93: 2112 | G93: 2112 | H93: 3168 | I93: 3256 | J93: 4224 | K93: 4312 | L93: 5280 | M93: =M$6*$B93 -> 5368 | N93: 6336 | O93: 6424 | P93: 7392 | Q93: 7480 | R93: 8448 | S93: 8536 | T93: 9504 | U93: 9592 | V93: 10560 | W93: 10648 | X93: 17600
B94: 89 | C94: 0 | D94: 1068 | E94: 1157 | F94: 2136 | G94: 2136 | H94: 3204 | I94: 3293 | J94: 4272 | K94: 4361 | L94: 5340 | M94: 5429 | N94: 6408 | O94: 6497 | P94: 7476 | Q94: 7565 | R94: 8544 | S94: 8633 | T94: 9612 | U94: 9701 | V94: 10680 | W94: 10769 | X94: 17800
B95: 90 | C95: 0 | D95: 1080 | E95: 1170 | F95: 2160 | G95: 2160 | H95: 3240 | I95: 3330 | J95: 4320 | K95: 4410 | L95: 5400 | M95: 5490 | N95: 6480 | O95: 6570 | P95: 7560 | Q95: 7650 | R95: 8640 | S95: 8730 | T95: 9720 | U95: 9810 | V95: 10800 | W95: 10890 | X95: 18000
B96: 91 | C96: 0 | D96: 1092 | E96: 1183 | F96: 2184 | G96: 2184 | H96: 3276 | I96: 3367 | J96: 4368 | K96: 4459 | L96: 5460 | M96: 5551 | N96: 6552 | O96: 6643 | P96: 7644 | Q96: 7735 | R96: 8736 | S96: 8827 | T96: 9828 | U96: 9919 | V96: 10920 | W96: 11011 | X96: 18200
B97: 92 | C97: 0 | D97: 1104 | E97: 1196 | F97: 2208 | G97: 2208 | H97: 3312 | I97: 3404 | J97: 4416 | K97: 4508 | L97: 5520 | M97: 5612 | N97: 6624 | O97: 6716 | P97: 7728 | Q97: 7820 | R97: 8832 | S97: 8924 | T97: 9936 | U97: 10028 | V97: 11040 | W97: 11132 | X97: 18400
B98: 93 | C98: 0 | D98: 1116 | E98: 1209 | F98: 2232 | G98: 2232 | H98: 3348 | I98: 3441 | J98: 4464 | K98: 4557 | L98: 5580 | M98: 5673 | N98: 6696 | O98: 6789 | P98: 7812 | Q98: 7905 | R98: 8928 | S98: 9021 | T98: 10044 | U98: 10137 | V98: 11160 | W98: 11253 | X98: 18600
B99: 94 | C99: 0 | D99: 1128 | E99: 1222 | F99: 2256 | G99: 2256 | H99: 3384 | I99: 3478 | J99: 4512 | K99: 4606 | L99: 5640 | M99: 5734 | N99: 6768 | O99: 6862 | P99: 7896 | Q99: 7990 | R99: 9024 | S99: 9118 | T99: 10152 | U99: 10246 | V99: 11280 | W99: 11374 | X99: 18800
B100: 95 | C100: 0 | D100: 1140 | E100: 1235 | F100: 2280 | G100: 2280 | H100: 3420 | I100: 3515 | J100: 4560 | K100: 4655 | L100: 5700 | M100: 5795 | N100: 6840 | O100: 6935 | P100: 7980 | Q100: 8075 | R100: 9120 | S100: 9215 | T100: 10260 | U100: 10355 | V100: 11400 | W100: 11495 | X100: 19000
B101: 96 | C101: 0 | D101: 1152 | E101: 1248 | F101: 2304 | G101: 2304 | H101: 3456 | I101: 3552 | J101: 4608 | K101: 4704 | L101: 5760 | M101: 5856 | N101: 6912 | O101: 7008 | P101: 8064 | Q101: 8160 | R101: 9216 | S101: 9312 | T101: 10368 | U101: 10464 | V101: 11520 | W101: 11616 | X101: 19200
B102: 97 | C102: 0 | D102: 1164 | E102: 1261 | F102: 2328 | G102: 2328 | H102: 3492 | I102: 3589 | J102: 4656 | K102: 4753 | L102: 5820 | M102: 5917 | N102: 6984 | O102: 7081 | P102: 8148 | Q102: 8245 | R102: 9312 | S102: 9409 | T102: 10476 | U102: 10573 | V102: 11640 | W102: 11737 | X102: 19400
B103: 98 | C103: 0 | D103: 1176 | E103: 1274 | F103: 2352 | G103: 2352 | H103: 3528 | I103: 3626 | J103: 4704 | K103: 4802 | L103: 5880 | M103: 5978 | N103: 7056 | O103: 7154 | P103: 8232 | Q103: 8330 | R103: 9408 | S103: 9506 | T103: 10584 | U103: 10682 | V103: 11760 | W103: 11858 | X103: 19600
B104: 99 | C104: 0 | D104: 1188 | E104: 1287 | F104: 2376 | G104: 2376 | H104: 3564 | I104: 3663 | J104: 4752 | K104: 4851 | L104: 5940 | M104: 6039 | N104: 7128 | O104: 7227 | P104: 8316 | Q104: 8415 | R104: 9504 | S104: 9603 | T104: 10692 | U104: 10791 | V104: 11880 | W104: 11979 | X104: 19800
B105: 100 | C105: 0 | D105: 1200 | E105: 1300 | F105: 2400 | G105: 2400 | H105: 3600 | I105: 3700 | J105: 4800 | K105: 4900 | L105: 6000 | M105: 6100 | N105: 7200 | O105: 7300 | P105: =P$6*$B105 -> 8400 | Q105: 8500 | R105: 9600 | S105: 9700 | T105: 10800 | U105: 10900 | V105: 12000 | W105: 12100 | X105: 20000
B106: 101 | C106: 0 | D106: 1212 | E106: 1313 | F106: 2424 | G106: 2424 | H106: 3636 | I106: 3737 | J106: 4848 | K106: 4949 | L106: 6060 | M106: 6161 | N106: 7272 | O106: 7373 | P106: 8484 | Q106: 8585 | R106: 9696 | S106: 9797 | T106: 10908 | U106: 11009 | V106: 12120 | W106: 12221 | X106: 20200
B107: 102 | C107: 0 | D107: 1224 | E107: 1326 | F107: 2448 | G107: 2448 | H107: 3672 | I107: 3774 | J107: 4896 | K107: 4998 | L107: 6120 | M107: 6222 | N107: 7344 | O107: 7446 | P107: 8568 | Q107: 8670 | R107: 9792 | S107: 9894 | T107: 11016 | U107: 11118 | V107: 12240 | W107: 12342 | X107: 20400
B108: 103 | C108: 0 | D108: 1236 | E108: 1339 | F108: 2472 | G108: 2472 | H108: 3708 | I108: 3811 | J108: 4944 | K108: 5047 | L108: 6180 | M108: 6283 | N108: 7416 | O108: 7519 | P108: 8652 | Q108: 8755 | R108: 9888 | S108: 9991 | T108: 11124 | U108: 11227 | V108: 12360 | W108: 12463 | X108: 20600
B109: 104 | C109: 0 | D109: 1248 | E109: 1352 | F109: 2496 | G109: 2496 | H109: 3744 | I109: 3848 | J109: 4992 | K109: 5096 | L109: 6240 | M109: 6344 | N109: 7488 | O109: 7592 | P109: 8736 | Q109: 8840 | R109: 9984 | S109: 10088 | T109: 11232 | U109: 11336 | V109: 12480 | W109: 12584 | X109: 20800
B110: 105 | C110: 0 | D110: 1260 | E110: 1365 | F110: 2520 | G110: 2520 | H110: 3780 | I110: 3885 | J110: 5040 | K110: 5145 | L110: 6300 | M110: 6405 | N110: 7560 | O110: 7665 | P110: 8820 | Q110: 8925 | R110: 10080 | S110: 10185 | T110: 11340 | U110: 11445 | V110: 12600 | W110: 12705 | X110: 21000
B111: 106 | C111: 0 | D111: 1272 | E111: 1378 | F111: 2544 | G111: 2544 | H111: 3816 | I111: 3922 | J111: 5088 | K111: 5194 | L111: 6360 | M111: 6466 | N111: 7632 | O111: 7738 | P111: 8904 | Q111: 9010 | R111: 10176 | S111: 10282 | T111: 11448 | U111: 11554 | V111: 12720 | W111: 12826 | X111: 21200
B112: 107 | C112: 0 | D112: 1284 | E112: 1391 | F112: 2568 | G112: 2568 | H112: 3852 | I112: 3959 | J112: 5136 | K112: 5243 | L112: 6420 | M112: 6527 | N112: 7704 | O112: 7811 | P112: 8988 | Q112: 9095 | R112: 10272 | S112: 10379 | T112: 11556 | U112: 11663 | V112: 12840 | W112: 12947 | X112: 21400
B113: 108 | C113: 0 | D113: 1296 | E113: 1404 | F113: 2592 | G113: 2592 | H113: 3888 | I113: 3996 | J113: 5184 | K113: 5292 | L113: 6480 | M113: 6588 | N113: 7776 | O113: 7884 | P113: 9072 | Q113: 9180 | R113: 10368 | S113: 10476 | T113: 11664 | U113: 11772 | V113: 12960 | W113: 13068 | X113: 21600
B114: 109 | C114: 0 | D114: 1308 | E114: 1417 | F114: 2616 | G114: 2616 | H114: 3924 | I114: 4033 | J114: 5232 | K114: 5341 | L114: 6540 | M114: 6649 | N114: 7848 | O114: 7957 | P114: 9156 | Q114: 9265 | R114: 10464 | S114: 10573 | T114: 11772 | U114: 11881 | V114: 13080 | W114: 13189 | X114: 21800
B115: 110 | C115: 0 | D115: 1320 | E115: 1430 | F115: 2640 | G115: 2640 | H115: 3960 | I115: 4070 | J115: 5280 | K115: 5390 | L115: 6600 | M115: 6710 | N115: 7920 | O115: 8030 | P115: 9240 | Q115: 9350 | R115: 10560 | S115: 10670 | T115: 11880 | U115: 11990 | V115: 13200 | W115: 13310 | X115: 22000
B116: 111 | C116: 0 | D116: 1332 | E116: 1443 | F116: 2664 | G116: 2664 | H116: 3996 | I116: 4107 | J116: 5328 | K116: 5439 | L116: 6660 | M116: 6771 | N116: 7992 | O116: 8103 | P116: 9324 | Q116: 9435 | R116: 10656 | S116: 10767 | T116: 11988 | U116: 12099 | V116: 13320 | W116: 13431 | X116: 22200
B117: 112 | C117: 0 | D117: 1344 | E117: 1456 | F117: 2688 | G117: 2688 | H117: 4032 | I117: 4144 | J117: 5376 | K117: 5488 | L117: 6720 | M117: 6832 | N117: 8064 | O117: 8176 | P117: 9408 | Q117: 9520 | R117: 10752 | S117: =S$6*$B117 -> 10864 | T117: 12096 | U117: 12208 | V117: 13440 | W117: 13552 | X117: 22400
B118: 113 | C118: 0 | D118: 1356 | E118: 1469 | F118: 2712 | G118: 2712 | H118: 4068 | I118: 4181 | J118: 5424 | K118: 5537 | L118: 6780 | M118: 6893 | N118: 8136 | O118: 8249 | P118: 9492 | Q118: 9605 | R118: 10848 | S118: 10961 | T118: 12204 | U118: 12317 | V118: 13560 | W118: 13673 | X118: 22600
B119: 114 | C119: 0 | D119: 1368 | E119: 1482 | F119: 2736 | G119: 2736 | H119: 4104 | I119: 4218 | J119: 5472 | K119: 5586 | L119: 6840 | M119: 6954 | N119: 8208 | O119: 8322 | P119: 9576 | Q119: 9690 | R119: 10944 | S119: 11058 | T119: 12312 | U119: 12426 | V119: 13680 | W119: 13794 | X119: 22800
B120: 115 | C120: 0 | D120: 1380 | E120: 1495 | F120: 2760 | G120: 2760 | H120: 4140 | I120: 4255 | J120: 5520 | K120: 5635 | L120: 6900 | M120: 7015 | N120: 8280 | O120: 8395 | P120: 9660 | Q120: 9775 | R120: 11040 | S120: 11155 | T120: 12420 | U120: 12535 | V120: 13800 | W120: 13915 | X120: 23000
B121: 116 | C121: 0 | D121: 1392 | E121: 1508 | F121: 2784 | G121: 2784 | H121: 4176 | I121: 4292 | J121: 5568 | K121: 5684 | L121: 6960 | M121: 7076 | N121: 8352 | O121: 8468 | P121: 9744 | Q121: 9860 | R121: 11136 | S121: 11252 | T121: 12528 | U121: 12644 | V121: 13920 | W121: 14036 | X121: 23200
B122: 117 | C122: 0 | D122: 1404 | E122: 1521 | F122: 2808 | G122: 2808 | H122: 4212 | I122: 4329 | J122: 5616 | K122: 5733 | L122: 7020 | M122: 7137 | N122: 8424 | O122: 8541 | P122: 9828 | Q122: 9945 | R122: 11232 | S122: 11349 | T122: 12636 | U122: 12753 | V122: 14040 | W122: 14157 | X122: 23400
B123: 118 | C123: 0 | D123: 1416 | E123: 1534 | F123: 2832 | G123: 2832 | H123: 4248 | I123: 4366 | J123: 5664 | K123: 5782 | L123: 7080 | M123: 7198 | N123: 8496 | O123: 8614 | P123: 9912 | Q123: 10030 | R123: 11328 | S123: 11446 | T123: 12744 | U123: 12862 | V123: 14160 | W123: 14278 | X123: 23600
B124: 119 | C124: 0 | D124: 1428 | E124: 1547 | F124: 2856 | G124: 2856 | H124: 4284 | I124: 4403 | J124: 5712 | K124: 5831 | L124: 7140 | M124: 7259 | N124: 8568 | O124: 8687 | P124: 9996 | Q124: 10115 | R124: 11424 | S124: 11543 | T124: 12852 | U124: 12971 | V124: 14280 | W124: 14399 | X124: 23800
B125: 120 | C125: 0 | D125: 1440 | E125: 1560 | F125: 2880 | G125: 2880 | H125: 4320 | I125: 4440 | J125: 5760 | K125: 5880 | L125: 7200 | M125: 7320 | N125: 8640 | O125: 8760 | P125: 10080 | Q125: 10200 | R125: 11520 | S125: 11640 | T125: 12960 | U125: 13080 | V125: 14400 | W125: 14520 | X125: 24000
B126: 121 | C126: 0 | D126: 1452 | E126: 1573 | F126: 2904 | G126: 2904 | H126: 4356 | I126: 4477 | J126: 5808 | K126: 5929 | L126: 7260 | M126: 7381 | N126: 8712 | O126: 8833 | P126: 10164 | Q126: 10285 | R126: 11616 | S126: 11737 | T126: 13068 | U126: 13189 | V126: 14520 | W126: 14641 | X126: 24200
B127: 122 | C127: 0 | D127: 1464 | E127: 1586 | F127: 2928 | G127: 2928 | H127: 4392 | I127: 4514 | J127: 5856 | K127: 5978 | L127: 7320 | M127: 7442 | N127: 8784 | O127: 8906 | P127: 10248 | Q127: 10370 | R127: 11712 | S127: 11834 | T127: 13176 | U127: 13298 | V127: 14640 | W127: 14762 | X127: 24400
B128: 123 | C128: 0 | D128: 1476 | E128: 1599 | F128: 2952 | G128: 2952 | H128: 4428 | I128: 4551 | J128: 5904 | K128: 6027 | L128: 7380 | M128: 7503 | N128: 8856 | O128: 8979 | P128: 10332 | Q128: 10455 | R128: 11808 | S128: 11931 | T128: 13284 | U128: 13407 | V128: 14760 | W128: 14883 | X128: 24600
B129: 124 | C129: 0 | D129: 1488 | E129: 1612 | F129: 2976 | G129: 2976 | H129: 4464 | I129: 4588 | J129: 5952 | K129: 6076 | L129: 7440 | M129: 7564 | N129: 8928 | O129: 9052 | P129: 10416 | Q129: 10540 | R129: 11904 | S129: 12028 | T129: 13392 | U129: 13516 | V129: =V$6*$B129 -> 14880 | W129: 15004 | X129: 24800
B130: 125 | C130: 0 | D130: 1500 | E130: 1625 | F130: 3000 | G130: 3000 | H130: 4500 | I130: 4625 | J130: 6000 | K130: 6125 | L130: 7500 | M130: 7625 | N130: 9000 | O130: 9125 | P130: 10500 | Q130: 10625 | R130: 12000 | S130: 12125 | T130: 13500 | U130: 13625 | V130: 15000 | W130: 15125 | X130: 25000
B131: 126 | C131: 0 | D131: 1512 | E131: 1638 | F131: 3024 | G131: 3024 | H131: 4536 | I131: 4662 | J131: 6048 | K131: 6174 | L131: 7560 | M131: 7686 | N131: 9072 | O131: 9198 | P131: 10584 | Q131: 10710 | R131: 12096 | S131: 12222 | T131: 13608 | U131: 13734 | V131: 15120 | W131: 15246 | X131: 25200
B132: 127 | C132: 0 | D132: 1524 | E132: 1651 | F132: 3048 | G132: 3048 | H132: 4572 | I132: 4699 | J132: 6096 | K132: 6223 | L132: 7620 | M132: 7747 | N132: 9144 | O132: 9271 | P132: 10668 | Q132: 10795 | R132: 12192 | S132: 12319 | T132: 13716 | U132: 13843 | V132: 15240 | W132: 15367 | X132: 25400
B133: 128 | C133: 0 | D133: 1536 | E133: 1664 | F133: 3072 | G133: 3072 | H133: 4608 | I133: 4736 | J133: 6144 | K133: 6272 | L133: 7680 | M133: 7808 | N133: 9216 | O133: 9344 | P133: 10752 | Q133: 10880 | R133: 12288 | S133: 12416 | T133: 13824 | U133: 13952 | V133: 15360 | W133: 15488 | X133: 25600
B134: 129 | C134: 0 | D134: 1548 | E134: 1677 | F134: 3096 | G134: 3096 | H134: 4644 | I134: 4773 | J134: 6192 | K134: 6321 | L134: 7740 | M134: 7869 | N134: 9288 | O134: 9417 | P134: 10836 | Q134: 10965 | R134: 12384 | S134: 12513 | T134: 13932 | U134: 14061 | V134: 15480 | W134: 15609 | X134: 25800
B135: 130 | C135: =C$6*$B135 -> 0 | D135: 1560 | E135: 1690 | F135: 3120 | G135: 3120 | H135: 4680 | I135: 4810 | J135: 6240 | K135: 6370 | L135: 7800 | M135: 7930 | N135: 9360 | O135: 9490 | P135: 10920 | Q135: 11050 | R135: 12480 | S135: 12610 | T135: 14040 | U135: 14170 | V135: 15600 | W135: 15730 | X135: 26000
B136: 131 | C136: 0 | D136: =D$6*$B136 -> 1572 | E136: 1703 | F136: 3144 | G136: 3144 | H136: 4716 | I136: 4847 | J136: 6288 | K136: 6419 | L136: 7860 | M136: 7991 | N136: 9432 | O136: 9563 | P136: 11004 | Q136: 11135 | R136: 12576 | S136: 12707 | T136: 14148 | U136: 14279 | V136: 15720 | W136: 15851 | X136: 26200
B137: 132 | C137: 0 | D137: 1584 | E137: 1716 | F137: 3168 | G137: 3168 | H137: 4752 | I137: 4884 | J137: 6336 | K137: 6468 | L137: 7920 | M137: 8052 | N137: 9504 | O137: 9636 | P137: 11088 | Q137: 11220 | R137: 12672 | S137: 12804 | T137: 14256 | U137: 14388 | V137: 15840 | W137: 15972 | X137: 26400
B138: 133 | C138: 0 | D138: 1596 | E138: 1729 | F138: 3192 | G138: 3192 | H138: 4788 | I138: 4921 | J138: 6384 | K138: 6517 | L138: 7980 | M138: 8113 | N138: 9576 | O138: 9709 | P138: 11172 | Q138: 11305 | R138: 12768 | S138: 12901 | T138: 14364 | U138: 14497 | V138: 15960 | W138: 16093 | X138: 26600
B139: 134 | C139: 0 | D139: 1608 | E139: 1742 | F139: 3216 | G139: 3216 | H139: 4824 | I139: 4958 | J139: 6432 | K139: 6566 | L139: 8040 | M139: 8174 | N139: 9648 | O139: 9782 | P139: 11256 | Q139: 11390 | R139: 12864 | S139: 12998 | T139: 14472 | U139: 14606 | V139: 16080 | W139: 16214 | X139: 26800
B140: 135 | C140: 0 | D140: 1620 | E140: 1755 | F140: 3240 | G140: 3240 | H140: 4860 | I140: 4995 | J140: 6480 | K140: 6615 | L140: 8100 | M140: 8235 | N140: 9720 | O140: 9855 | P140: 11340 | Q140: 11475 | R140: 12960 | S140: 13095 | T140: 14580 | U140: 14715 | V140: 16200 | W140: 16335 | X140: 27000
B141: 136 | C141: 0 | D141: 1632 | E141: 1768 | F141: 3264 | G141: 3264 | H141: 4896 | I141: 5032 | J141: 6528 | K141: 6664 | L141: 8160 | M141: 8296 | N141: 9792 | O141: 9928 | P141: 11424 | Q141: 11560 | R141: 13056 | S141: 13192 | T141: 14688 | U141: 14824 | V141: 16320 | W141: 16456 | X141: 27200
B142: 137 | C142: 0 | D142: 1644 | E142: 1781 | F142: 3288 | G142: 3288 | H142: 4932 | I142: 5069 | J142: 6576 | K142: 6713 | L142: 8220 | M142: 8357 | N142: 9864 | O142: 10001 | P142: 11508 | Q142: 11645 | R142: 13152 | S142: =S$6*$B142 -> 13289 | T142: 14796 | U142: 14933 | V142: 16440 | W142: 16577 | X142: 27400
B143: 138 | C143: 0 | D143: 1656 | E143: 1794 | F143: 3312 | G143: 3312 | H143: 4968 | I143: 5106 | J143: 6624 | K143: 6762 | L143: 8280 | M143: 8418 | N143: 9936 | O143: 10074 | P143: 11592 | Q143: 11730 | R143: 13248 | S143: 13386 | T143: 14904 | U143: 15042 | V143: 16560 | W143: 16698 | X143: 27600
B144: 139 | C144: 0 | D144: 1668 | E144: 1807 | F144: 3336 | G144: 3336 | H144: 5004 | I144: 5143 | J144: 6672 | K144: 6811 | L144: 8340 | M144: 8479 | N144: 10008 | O144: 10147 | P144: 11676 | Q144: 11815 | R144: 13344 | S144: 13483 | T144: 15012 | U144: 15151 | V144: 16680 | W144: 16819 | X144: 27800
B145: 140 | C145: 0 | D145: 1680 | E145: 1820 | F145: 3360 | G145: 3360 | H145: 5040 | I145: 5180 | J145: 6720 | K145: 6860 | L145: 8400 | M145: 8540 | N145: 10080 | O145: 10220 | P145: 11760 | Q145: 11900 | R145: 13440 | S145: 13580 | T145: 15120 | U145: 15260 | V145: 16800 | W145: 16940 | X145: 28000
B146: 141 | C146: 0 | D146: 1692 | E146: 1833 | F146: 3384 | G146: 3384 | H146: 5076 | I146: 5217 | J146: 6768 | K146: 6909 | L146: 8460 | M146: 8601 | N146: 10152 | O146: 10293 | P146: 11844 | Q146: 11985 | R146: 13536 | S146: 13677 | T146: 15228 | U146: 15369 | V146: 16920 | W146: 17061 | X146: 28200
B147: 142 | C147: 0 | D147: 1704 | E147: 1846 | F147: 3408 | G147: 3408 | H147: 5112 | I147: 5254 | J147: 6816 | K147: 6958 | L147: 8520 | M147: 8662 | N147: 10224 | O147: 10366 | P147: 11928 | Q147: 12070 | R147: 13632 | S147: 13774 | T147: 15336 | U147: 15478 | V147: 17040 | W147: 17182 | X147: 28400
B148: 143 | C148: 0 | D148: 1716 | E148: 1859 | F148: 3432 | G148: 3432 | H148: 5148 | I148: 5291 | J148: 6864 | K148: 7007 | L148: 8580 | M148: 8723 | N148: 10296 | O148: 10439 | P148: 12012 | Q148: 12155 | R148: 13728 | S148: 13871 | T148: 15444 | U148: 15587 | V148: 17160 | W148: 17303 | X148: 28600
B149: 144 | C149: 0 | D149: 1728 | E149: 1872 | F149: 3456 | G149: 3456 | H149: 5184 | I149: 5328 | J149: 6912 | K149: 7056 | L149: 8640 | M149: 8784 | N149: 10368 | O149: 10512 | P149: 12096 | Q149: 12240 | R149: 13824 | S149: 13968 | T149: 15552 | U149: 15696 | V149: 17280 | W149: 17424 | X149: 28800
B150: 145 | C150: 0 | D150: 1740 | E150: 1885 | F150: 3480 | G150: 3480 | H150: 5220 | I150: 5365 | J150: 6960 | K150: 7105 | L150: 8700 | M150: 8845 | N150: 10440 | O150: 10585 | P150: 12180 | Q150: 12325 | R150: 13920 | S150: 14065 | T150: 15660 | U150: 15805 | V150: 17400 | W150: 17545 | X150: 29000
B151: 146 | C151: 0 | D151: 1752 | E151: 1898 | F151: 3504 | G151: 3504 | H151: 5256 | I151: 5402 | J151: 7008 | K151: 7154 | L151: 8760 | M151: 8906 | N151: 10512 | O151: 10658 | P151: 12264 | Q151: 12410 | R151: 14016 | S151: 14162 | T151: 15768 | U151: 15914 | V151: 17520 | W151: 17666 | X151: 29200
B152: 147 | C152: 0 | D152: 1764 | E152: 1911 | F152: 3528 | G152: 3528 | H152: 5292 | I152: 5439 | J152: 7056 | K152: 7203 | L152: 8820 | M152: 8967 | N152: 10584 | O152: 10731 | P152: 12348 | Q152: 12495 | R152: 14112 | S152: 14259 | T152: 15876 | U152: 16023 | V152: 17640 | W152: 17787 | X152: 29400
B153: 148 | C153: 0 | D153: 1776 | E153: 1924 | F153: 3552 | G153: 3552 | H153: 5328 | I153: 5476 | J153: 7104 | K153: 7252 | L153: 8880 | M153: 9028 | N153: 10656 | O153: 10804 | P153: 12432 | Q153: 12580 | R153: 14208 | S153: 14356 | T153: 15984 | U153: 16132 | V153: 17760 | W153: 17908 | X153: 29600
B154: 149 | C154: 0 | D154: 1788 | E154: 1937 | F154: 3576 | G154: 3576 | H154: 5364 | I154: 5513 | J154: 7152 | K154: 7301 | L154: 8940 | M154: 9089 | N154: 10728 | O154: 10877 | P154: 12516 | Q154: 12665 | R154: 14304 | S154: 14453 | T154: 16092 | U154: 16241 | V154: =V$6*$B154 -> 17880 | W154: 18029 | X154: 29800
B155: 150 | C155: 0 | D155: 1800 | E155: 1950 | F155: 3600 | G155: 3600 | H155: 5400 | I155: 5550 | J155: 7200 | K155: 7350 | L155: 9000 | M155: 9150 | N155: 10800 | O155: 10950 | P155: 12600 | Q155: 12750 | R155: 14400 | S155: 14550 | T155: 16200 | U155: 16350 | V155: 18000 | W155: 18150 | X155: 30000
B156: 151 | C156: 0 | D156: 1812 | E156: 1963 | F156: 3624 | G156: 3624 | H156: 5436 | I156: 5587 | J156: 7248 | K156: 7399 | L156: 9060 | M156: 9211 | N156: 10872 | O156: 11023 | P156: 12684 | Q156: 12835 | R156: 14496 | S156: 14647 | T156: 16308 | U156: 16459 | V156: 18120 | W156: 18271 | X156: 30200
B157: 152 | C157: 0 | D157: 1824 | E157: 1976 | F157: 3648 | G157: 3648 | H157: 5472 | I157: 5624 | J157: 7296 | K157: 7448 | L157: 9120 | M157: 9272 | N157: 10944 | O157: 11096 | P157: 12768 | Q157: 12920 | R157: 14592 | S157: 14744 | T157: 16416 | U157: 16568 | V157: 18240 | W157: 18392 | X157: 30400
B158: 153 | C158: 0 | D158: 1836 | E158: 1989 | F158: 3672 | G158: 3672 | H158: 5508 | I158: 5661 | J158: 7344 | K158: 7497 | L158: 9180 | M158: 9333 | N158: 11016 | O158: 11169 | P158: 12852 | Q158: 13005 | R158: 14688 | S158: 14841 | T158: 16524 | U158: 16677 | V158: 18360 | W158: 18513 | X158: 30600
B159: 154 | C159: 0 | D159: 1848 | E159: 2002 | F159: 3696 | G159: 3696 | H159: 5544 | I159: 5698 | J159: 7392 | K159: 7546 | L159: 9240 | M159: 9394 | N159: 11088 | O159: 11242 | P159: 12936 | Q159: 13090 | R159: 14784 | S159: 14938 | T159: 16632 | U159: 16786 | V159: 18480 | W159: 18634 | X159: 30800
B160: 155 | C160: 0 | D160: 1860 | E160: 2015 | F160: 3720 | G160: 3720 | H160: 5580 | I160: 5735 | J160: 7440 | K160: 7595 | L160: 9300 | M160: 9455 | N160: 11160 | O160: 11315 | P160: 13020 | Q160: 13175 | R160: 14880 | S160: 15035 | T160: 16740 | U160: 16895 | V160: 18600 | W160: 18755 | X160: 31000
B161: 156 | C161: 0 | D161: 1872 | E161: 2028 | F161: 3744 | G161: 3744 | H161: 5616 | I161: 5772 | J161: 7488 | K161: 7644 | L161: 9360 | M161: 9516 | N161: 11232 | O161: 11388 | P161: 13104 | Q161: 13260 | R161: 14976 | S161: 15132 | T161: 16848 | U161: 17004 | V161: 18720 | W161: 18876 | X161: 31200
B162: 157 | C162: 0 | D162: 1884 | E162: 2041 | F162: 3768 | G162: 3768 | H162: 5652 | I162: 5809 | J162: 7536 | K162: 7693 | L162: 9420 | M162: 9577 | N162: 11304 | O162: 11461 | P162: 13188 | Q162: 13345 | R162: 15072 | S162: 15229 | T162: 16956 | U162: 17113 | V162: 18840 | W162: 18997 | X162: 31400
B163: 158 | C163: 0 | D163: 1896 | E163: 2054 | F163: 3792 | G163: 3792 | H163: 5688 | I163: 5846 | J163: 7584 | K163: 7742 | L163: 9480 | M163: 9638 | N163: 11376 | O163: 11534 | P163: 13272 | Q163: 13430 | R163: 15168 | S163: 15326 | T163: 17064 | U163: 17222 | V163: 18960 | W163: 19118 | X163: 31600
B164: 159 | C164: 0 | D164: 1908 | E164: 2067 | F164: 3816 | G164: 3816 | H164: 5724 | I164: 5883 | J164: 7632 | K164: 7791 | L164: 9540 | M164: 9699 | N164: 11448 | O164: 11607 | P164: 13356 | Q164: 13515 | R164: 15264 | S164: 15423 | T164: 17172 | U164: 17331 | V164: 19080 | W164: 19239 | X164: 31800
B165: 160 | C165: 0 | D165: 1920 | E165: 2080 | F165: 3840 | G165: 3840 | H165: 5760 | I165: 5920 | J165: 7680 | K165: 7840 | L165: 9600 | M165: 9760 | N165: 11520 | O165: 11680 | P165: 13440 | Q165: 13600 | R165: 15360 | S165: 15520 | T165: 17280 | U165: 17440 | V165: 19200 | W165: 19360 | X165: 32000
B166: 161 | C166: 0 | D166: 1932 | E166: 2093 | F166: 3864 | G166: 3864 | H166: 5796 | I166: 5957 | J166: 7728 | K166: 7889 | L166: 9660 | M166: 9821 | N166: 11592 | O166: 11753 | P166: 13524 | Q166: 13685 | R166: 15456 | S166: 15617 | T166: 17388 | U166: 17549 | V166: 19320 | W166: 19481 | X166: 32200
B167: 162 | C167: 0 | D167: =D$6*$B167 -> 1944 | E167: 2106 | F167: 3888 | G167: 3888 | H167: 5832 | I167: 5994 | J167: 7776 | K167: 7938 | L167: 9720 | M167: 9882 | N167: 11664 | O167: 11826 | P167: 13608 | Q167: 13770 | R167: 15552 | S167: 15714 | T167: 17496 | U167: 17658 | V167: 19440 | W167: 19602 | X167: 32400
B168: 163 | C168: 0 | D168: 1956 | E168: 2119 | F168: 3912 | G168: 3912 | H168: 5868 | I168: 6031 | J168: 7824 | K168: 7987 | L168: 9780 | M168: 9943 | N168: 11736 | O168: 11899 | P168: 13692 | Q168: 13855 | R168: 15648 | S168: 15811 | T168: 17604 | U168: 17767 | V168: 19560 | W168: 19723 | X168: 32600
B169: 164 | C169: 0 | D169: 1968 | E169: 2132 | F169: 3936 | G169: 3936 | H169: 5904 | I169: 6068 | J169: 7872 | K169: 8036 | L169: 9840 | M169: 10004 | N169: 11808 | O169: 11972 | P169: 13776 | Q169: 13940 | R169: 15744 | S169: 15908 | T169: 17712 | U169: 17876 | V169: 19680 | W169: 19844 | X169: 32800
B170: 165 | C170: 0 | D170: 1980 | E170: 2145 | F170: 3960 | G170: 3960 | H170: 5940 | I170: 6105 | J170: 7920 | K170: 8085 | L170: 9900 | M170: 10065 | N170: 11880 | O170: 12045 | P170: 13860 | Q170: 14025 | R170: 15840 | S170: 16005 | T170: 17820 | U170: 17985 | V170: 19800 | W170: 19965 | X170: 33000
B171: 166 | C171: 0 | D171: 1992 | E171: 2158 | F171: 3984 | G171: 3984 | H171: 5976 | I171: 6142 | J171: 7968 | K171: 8134 | L171: 9960 | M171: 10126 | N171: 11952 | O171: 12118 | P171: 13944 | Q171: 14110 | R171: 15936 | S171: 16102 | T171: 17928 | U171: 18094 | V171: 19920 | W171: 20086 | X171: 33200
B172: 167 | C172: 0 | D172: 2004 | E172: 2171 | F172: 4008 | G172: 4008 | H172: 6012 | I172: 6179 | J172: 8016 | K172: 8183 | L172: 10020 | M172: 10187 | N172: 12024 | O172: 12191 | P172: 14028 | Q172: 14195 | R172: 16032 | S172: 16199 | T172: 18036 | U172: 18203 | V172: 20040 | W172: 20207 | X172: 33400
B173: 168 | C173: 0 | D173: 2016 | E173: 2184 | F173: 4032 | G173: 4032 | H173: 6048 | I173: 6216 | J173: 8064 | K173: 8232 | L173: 10080 | M173: 10248 | N173: 12096 | O173: 12264 | P173: 14112 | Q173: 14280 | R173: 16128 | S173: 16296 | T173: 18144 | U173: 18312 | V173: 20160 | W173: 20328 | X173: 33600
B174: 169 | C174: 0 | D174: 2028 | E174: 2197 | F174: 4056 | G174: 4056 | H174: 6084 | I174: 6253 | J174: 8112 | K174: 8281 | L174: 10140 | M174: 10309 | N174: 12168 | O174: 12337 | P174: 14196 | Q174: 14365 | R174: 16224 | S174: 16393 | T174: 18252 | U174: 18421 | V174: 20280 | W174: 20449 | X174: 33800
B175: 170 | C175: 0 | D175: 2040 | E175: 2210 | F175: 4080 | G175: 4080 | H175: 6120 | I175: 6290 | J175: 8160 | K175: 8330 | L175: 10200 | M175: 10370 | N175: 12240 | O175: 12410 | P175: 14280 | Q175: 14450 | R175: 16320 | S175: 16490 | T175: 18360 | U175: 18530 | V175: 20400 | W175: 20570 | X175: 34000
B176: 171 | C176: 0 | D176: 2052 | E176: 2223 | F176: 4104 | G176: 4104 | H176: 6156 | I176: 6327 | J176: 8208 | K176: 8379 | L176: 10260 | M176: 10431 | N176: 12312 | O176: 12483 | P176: 14364 | Q176: 14535 | R176: 16416 | S176: 16587 | T176: 18468 | U176: 18639 | V176: 20520 | W176: 20691 | X176: 34200
B177: 172 | C177: 0 | D177: 2064 | E177: 2236 | F177: 4128 | G177: 4128 | H177: 6192 | I177: 6364 | J177: 8256 | K177: 8428 | L177: 10320 | M177: 10492 | N177: 12384 | O177: 12556 | P177: 14448 | Q177: 14620 | R177: 16512 | S177: 16684 | T177: 18576 | U177: 18748 | V177: 20640 | W177: 20812 | X177: 34400
B178: 173 | C178: 0 | D178: 2076 | E178: 2249 | F178: 4152 | G178: 4152 | H178: 6228 | I178: 6401 | J178: 8304 | K178: 8477 | L178: 10380 | M178: 10553 | N178: 12456 | O178: 12629 | P178: 14532 | Q178: 14705 | R178: 16608 | S178: 16781 | T178: 18684 | U178: 18857 | V178: 20760 | W178: 20933 | X178: 34600
B179: 174 | C179: 0 | D179: 2088 | E179: 2262 | F179: 4176 | G179: =G$6*$B179 -> 4176 | H179: 6264 | I179: 6438 | J179: 8352 | K179: 8526 | L179: 10440 | M179: 10614 | N179: 12528 | O179: 12702 | P179: 14616 | Q179: 14790 | R179: 16704 | S179: 16878 | T179: 18792 | U179: 18966 | V179: 20880 | W179: 21054 | X179: 34800
B180: 175 | C180: 0 | D180: 2100 | E180: 2275 | F180: 4200 | G180: 4200 | H180: 6300 | I180: 6475 | J180: 8400 | K180: 8575 | L180: 10500 | M180: 10675 | N180: 12600 | O180: 12775 | P180: 14700 | Q180: 14875 | R180: 16800 | S180: 16975 | T180: 18900 | U180: 19075 | V180: 21000 | W180: 21175 | X180: 35000
B181: 176 | C181: 0 | D181: 2112 | E181: 2288 | F181: 4224 | G181: 4224 | H181: 6336 | I181: 6512 | J181: 8448 | K181: 8624 | L181: 10560 | M181: 10736 | N181: 12672 | O181: 12848 | P181: 14784 | Q181: 14960 | R181: 16896 | S181: 17072 | T181: 19008 | U181: 19184 | V181: 21120 | W181: 21296 | X181: 35200
B182: 177 | C182: 0 | D182: 2124 | E182: 2301 | F182: 4248 | G182: 4248 | H182: 6372 | I182: 6549 | J182: 8496 | K182: 8673 | L182: 10620 | M182: 10797 | N182: 12744 | O182: 12921 | P182: 14868 | Q182: 15045 | R182: 16992 | S182: 17169 | T182: 19116 | U182: 19293 | V182: 21240 | W182: 21417 | X182: 35400
B183: 178 | C183: 0 | D183: 2136 | E183: 2314 | F183: 4272 | G183: 4272 | H183: 6408 | I183: 6586 | J183: 8544 | K183: 8722 | L183: 10680 | M183: 10858 | N183: 12816 | O183: 12994 | P183: 14952 | Q183: 15130 | R183: 17088 | S183: 17266 | T183: 19224 | U183: 19402 | V183: 21360 | W183: 21538 | X183: 35600
B184: 179 | C184: 0 | D184: 2148 | E184: 2327 | F184: 4296 | G184: 4296 | H184: 6444 | I184: 6623 | J184: 8592 | K184: 8771 | L184: 10740 | M184: 10919 | N184: 12888 | O184: 13067 | P184: 15036 | Q184: 15215 | R184: 17184 | S184: 17363 | T184: 19332 | U184: 19511 | V184: 21480 | W184: 21659 | X184: 35800
B185: 180 | C185: 0 | D185: 2160 | E185: 2340 | F185: 4320 | G185: 4320 | H185: 6480 | I185: 6660 | J185: 8640 | K185: 8820 | L185: 10800 | M185: 10980 | N185: 12960 | O185: 13140 | P185: 15120 | Q185: 15300 | R185: 17280 | S185: 17460 | T185: 19440 | U185: 19620 | V185: 21600 | W185: 21780 | X185: 36000
B186: 181 | C186: 0 | D186: 2172 | E186: 2353 | F186: 4344 | G186: 4344 | H186: 6516 | I186: 6697 | J186: 8688 | K186: 8869 | L186: 10860 | M186: 11041 | N186: 13032 | O186: 13213 | P186: 15204 | Q186: 15385 | R186: 17376 | S186: 17557 | T186: 19548 | U186: 19729 | V186: 21720 | W186: 21901 | X186: 36200
B187: 182 | C187: 0 | D187: 2184 | E187: 2366 | F187: 4368 | G187: 4368 | H187: 6552 | I187: 6734 | J187: 8736 | K187: 8918 | L187: 10920 | M187: 11102 | N187: 13104 | O187: 13286 | P187: 15288 | Q187: 15470 | R187: 17472 | S187: 17654 | T187: 19656 | U187: 19838 | V187: 21840 | W187: 22022 | X187: 36400
B188: 183 | C188: 0 | D188: 2196 | E188: 2379 | F188: 4392 | G188: 4392 | H188: 6588 | I188: 6771 | J188: 8784 | K188: 8967 | L188: 10980 | M188: 11163 | N188: 13176 | O188: 13359 | P188: 15372 | Q188: 15555 | R188: 17568 | S188: 17751 | T188: 19764 | U188: 19947 | V188: 21960 | W188: 22143 | X188: 36600
B189: 184 | C189: 0 | D189: 2208 | E189: 2392 | F189: 4416 | G189: 4416 | H189: 6624 | I189: 6808 | J189: 8832 | K189: 9016 | L189: 11040 | M189: 11224 | N189: 13248 | O189: 13432 | P189: 15456 | Q189: 15640 | R189: 17664 | S189: 17848 | T189: 19872 | U189: 20056 | V189: 22080 | W189: 22264 | X189: 36800
B190: 185 | C190: 0 | D190: 2220 | E190: 2405 | F190: 4440 | G190: 4440 | H190: 6660 | I190: 6845 | J190: 8880 | K190: 9065 | L190: 11100 | M190: 11285 | N190: 13320 | O190: 13505 | P190: 15540 | Q190: 15725 | R190: 17760 | S190: 17945 | T190: 19980 | U190: 20165 | V190: 22200 | W190: 22385 | X190: 37000
B191: 186 | C191: 0 | D191: 2232 | E191: 2418 | F191: 4464 | G191: 4464 | H191: 6696 | I191: 6882 | J191: =J$6*$B191 -> 8928 | K191: 9114 | L191: 11160 | M191: 11346 | N191: 13392 | O191: 13578 | P191: 15624 | Q191: 15810 | R191: 17856 | S191: 18042 | T191: 20088 | U191: 20274 | V191: 22320 | W191: 22506 | X191: 37200
B192: 187 | C192: 0 | D192: 2244 | E192: 2431 | F192: 4488 | G192: 4488 | H192: 6732 | I192: 6919 | J192: 8976 | K192: 9163 | L192: 11220 | M192: 11407 | N192: 13464 | O192: 13651 | P192: 15708 | Q192: 15895 | R192: 17952 | S192: 18139 | T192: 20196 | U192: 20383 | V192: 22440 | W192: 22627 | X192: 37400
B193: 188 | C193: 0 | D193: 2256 | E193: 2444 | F193: 4512 | G193: 4512 | H193: 6768 | I193: 6956 | J193: 9024 | K193: 9212 | L193: 11280 | M193: 11468 | N193: 13536 | O193: 13724 | P193: 15792 | Q193: 15980 | R193: 18048 | S193: 18236 | T193: 20304 | U193: 20492 | V193: 22560 | W193: 22748 | X193: 37600
B194: 189 | C194: 0 | D194: 2268 | E194: 2457 | F194: 4536 | G194: 4536 | H194: 6804 | I194: 6993 | J194: 9072 | K194: 9261 | L194: 11340 | M194: 11529 | N194: 13608 | O194: 13797 | P194: 15876 | Q194: 16065 | R194: 18144 | S194: 18333 | T194: 20412 | U194: 20601 | V194: 22680 | W194: 22869 | X194: 37800
B195: 190 | C195: 0 | D195: 2280 | E195: 2470 | F195: 4560 | G195: 4560 | H195: 6840 | I195: 7030 | J195: 9120 | K195: 9310 | L195: 11400 | M195: 11590 | N195: 13680 | O195: 13870 | P195: 15960 | Q195: 16150 | R195: 18240 | S195: 18430 | T195: 20520 | U195: 20710 | V195: 22800 | W195: 22990 | X195: 38000
B196: 191 | C196: 0 | D196: 2292 | E196: 2483 | F196: 4584 | G196: 4584 | H196: 6876 | I196: 7067 | J196: 9168 | K196: 9359 | L196: 11460 | M196: 11651 | N196: 13752 | O196: 13943 | P196: 16044 | Q196: 16235 | R196: 18336 | S196: 18527 | T196: 20628 | U196: 20819 | V196: 22920 | W196: 23111 | X196: 38200
B197: 192 | C197: 0 | D197: 2304 | E197: 2496 | F197: 4608 | G197: 4608 | H197: 6912 | I197: 7104 | J197: 9216 | K197: 9408 | L197: 11520 | M197: 11712 | N197: 13824 | O197: 14016 | P197: 16128 | Q197: 16320 | R197: 18432 | S197: 18624 | T197: 20736 | U197: 20928 | V197: 23040 | W197: 23232 | X197: 38400
B198: 193 | C198: 0 | D198: 2316 | E198: 2509 | F198: 4632 | G198: 4632 | H198: 6948 | I198: 7141 | J198: 9264 | K198: 9457 | L198: 11580 | M198: 11773 | N198: 13896 | O198: 14089 | P198: 16212 | Q198: 16405 | R198: 18528 | S198: 18721 | T198: 20844 | U198: 21037 | V198: 23160 | W198: 23353 | X198: 38600
B199: 194 | C199: =C$6*$B199 -> 0 | D199: 2328 | E199: 2522 | F199: 4656 | G199: 4656 | H199: 6984 | I199: 7178 | J199: 9312 | K199: 9506 | L199: 11640 | M199: 11834 | N199: 13968 | O199: 14162 | P199: 16296 | Q199: 16490 | R199: 18624 | S199: 18818 | T199: 20952 | U199: 21146 | V199: 23280 | W199: 23474 | X199: 38800
B200: 195 | C200: 0 | D200: =D$6*$B200 -> 2340 | E200: 2535 | F200: 4680 | G200: 4680 | H200: 7020 | I200: 7215 | J200: 9360 | K200: 9555 | L200: 11700 | M200: 11895 | N200: 14040 | O200: 14235 | P200: 16380 | Q200: 16575 | R200: 18720 | S200: 18915 | T200: 21060 | U200: 21255 | V200: 23400 | W200: 23595 | X200: 39000
... 305 more rows
